{"text_format":"3","workbook":"xlsx","n_sheets":6,"sheets":["Anleitung","1. Überblick","2. IST-SOLL-Vergleich","3. TN Feedback in Zahlen","4. Grafische Darstellung","5. Anekdotensammlung"],"not_rendered":{"images":3},"read":"whole","date_system":"1900"}

{"sheet":"Anleitung","index":0,"n_rows":72,"n_cols":4,"rows_kept":72,"merged":[[13,0,13,4],[17,1,17,5],[18,1,18,7],[37,1,37,2],[37,3,37,5],[38,3,38,5],[39,1,39,2],[39,3,39,5],[41,1,41,2],[41,3,41,5],[42,1,42,2],[42,3,42,5],[43,1,43,2],[43,3,43,5],[44,1,44,2],[44,3,44,5],[45,1,45,2],[45,3,45,5],[46,1,46,2],[46,3,46,5],[47,1,47,2],[47,3,47,5],[48,1,48,2],[48,3,48,5],[49,1,49,2],[49,3,49,5],[50,1,50,2],[50,3,50,5],[52,1,52,2],[52,3,52,5],[53,1,53,2],[53,3,53,5],[54,1,54,2],[54,3,54,5],[55,1,55,2],[55,3,55,5],[56,1,56,2],[56,3,56,5],[57,1,57,2],[57,3,57,5],[58,1,58,2],[58,3,58,5],[59,1,59,2],[59,3,59,5],[60,1,60,2],[60,3,60,5],[62,1,62,5],[64,1,64,2],[64,3,64,5],[65,1,65,2],[65,3,65,5],[66,1,66,2],[66,3,66,5],[67,1,67,2],[67,3,67,5],[68,1,68,2],[68,3,68,5],[69,1,69,2],[69,3,69,5],[70,1,70,2],[70,3,70,5],[71,1,71,2],[71,3,71,5]]}
{"$rows_empty":13}
["                                 Wirkungsmessung - Anleitung"]
[]
[]
[{"$nulls":3}," "]
[null,"Bitte tragen Sie die Informationen zu Ihrem Projekt auf den unten vorbereiteten Tabellenblättern ein"]
[null,"ACHTUNG: nur in grün markierten Zellen schreiben (alle anderen sind schreibgeschützt)"]
[]
[null,"Bitte geben Sie Ihre Projektangaben in folgenden Arbeitsschritten an"]
[null,"Diese Informationen brauchen wir von Ihnen: "]
[]
[null,"1. Allgemeine Informationen zu Ihrem Projekt (Reiter Überblick)"]
[]
[null,"2. Vereinbarte (SOLL) und erreichte (IST) Kennzahlen der Maßnahmen / Teilnehmenden  (Reiter IST-SOLL-Vergleich)"]
[]
[null,"3. Teilnehmenden-Feedback in Zahlen  (Reiter TN Feedback in Zahlen)"]
[]
[null,"4. Grafische Darstellung (je nach Vereinbarung)  (Reiter Grafische Darstellung)"]
[]
[null,"5. Anekdotensammlung "]
[]
[]
[null,"Begriffserklärungen"]
[]
[null,"1. Reiter Überblick"]
[null,"Organisation",null,"Name Ihrer Organisation "]
[null,"Projekttitel",null,"Name Ihres Projektes"]
[null,"Projektbericht",null,"Dropdown-Auswahlmenü: \"Zwischenbericht\", \"Endbericht\"; Bitte wählen Sie hier aus, ob Sie uns hiermit den Zwischenbericht oder den Endbericht übermitteln"]
[null,"2. Reiter IST-SOLL-Vergleich"]
[null,"Kopfzeile",null,"In die Kopfzeile müssen Sie nichts eintragen - nachdem Sie die Information im Reiter Überblick ausgefüllt haben, befüllt sie sich automatisch"]
[null,"grau hinterlegte Zeile nach der Kopfzeile",null,"Hier finden Sie fiktive Musterbeispiele zur Eintragung der Werte, an denen Sie sich orientieren können"]
[null,"Maßnahme",null,"Auf welche Ihrer Projektmaßnahmen (Workshop, Exkursion, Vortrag, etc.) beziehen sich die jeweiligen Kennzahlen? "]
[null,"Summe der vereinbarten Zielwerte (SOLL) - Maßnahme",null,"Welche Kennzahlen pro Maßnahme haben Sie mit uns vertraglich vereinbart? Beispiel: Im Vertrag wurden 15 Workshops vereinbart, dann tragen Sie bitte genau diesen Wert in die Zelle ein"]
[null,"Summe der erreichten Werte (IST) - Maßnahme",null,"Welche Kennzahlen pro Maßnahme konnten Sie bis zur Abgabe des Berichts erreichen? Beispiel: Bis zur Abgabe des Berichts wurden 6 Workshops abgehalten, dann tragen Sie bitte genau diesen Wert in die Zelle ein"]
[null,"Summe der vereinbarten Zielwerte (SOLL) - Teilnehmende",null,"Welche Teilnehmenden-Kennzahlen pro Maßnahme haben Sie mit uns vertraglich vereinbart? Beispiel: Im Vertrag wurden insg. 150 Teilnehmende an Workshops vereinbart, dann tragen Sie bitte genau diesen Wert in die Zelle ein"]
[null,"Summe der erreichten Werte (IST) - Teilnehmende",null,"Welche Teilnehmenden-Kennzahlen konnten Sie bis zur Abgabe des Berichts erreichen?  Beispiel: Bis zur Abgabe des Berichts wurden 90 Teilnehmende erreicht, dann tragen Sie bitte genau diesen Wert in die Zelle ein"]
[null,"vereinbarte Mindest-Zielwerte (SOLL) - Mädchen / Frauen (%)",null,"Falls sich Ihre Maßnahme an Kinder richtet UND sie mit uns vertraglich vereinbart haben, dass Sie eine Mindest-Zahl an Mädchen / Frauen mit Ihrer Maßnahme erreichen, dann tragen Sie hier bitte diesen Mindest-Zielwert in Prozent ein. Wenn das nicht der Fall ist, füllen Sie die Zelle bitte mit \"N/A\" aus"]
[null,"erreichte Werte (IST) - Mädchen / Frauen (%)",null,"Sofern Sie für Ihre Maßnahme erhoben haben, wie viele Mädchen / Frauen Sie erreicht haben, tragen Sie bitte diesen Wert in Prozent ein "]
[null,"%",null,"Hier müssen Sie nichts eintragen - nachdem Sie die IST und SOLL-Werte eingetragen haben, befüllt sich die Zelle jeweils automatisch"]
[null,"3. Reiter TN Feedback in Zahlen"]
[null,"Kopfzeile",null,"In die Kopfzeile müssen Sie nichts eintragen - nachdem Sie die Information im Reiter Überblick ausgefüllt haben, befüllt sie sich automatisch"]
[null,"grau hinterlegte Zeile nach der Kopfzeile",null,"Hier finden Sie fiktive Musterbeispiele zur Eintragung der Werte, an denen Sie sich orientieren können"]
[null,"Durchführung einer Befragung",null,"Dropdown-Auswahlmenü: \"ja, wir haben unsere Teilnehmenden dazu befragt\", \"nein, keine Befragung dazu durchgeführt\"; Bitte wählen Sie hier aus, ob Sie Ihre Teilnehmenden zu der Maßnahme befragt haben"]
[null,"Maßnahme",null,"Auf welche Ihrer Projektmaßnahmen (Workshop, Exkursion, Vortrag, etc.) bezieht sich das Feedback (Anzahl der befragten Personen, Anzahl der Antworten, Fragestellung, etc.), das sie von Ihren Teilnehmenden erhoben haben? Bitte wählen Sie aus dem Dropdown-Auswahlmenü aus den Maßnahmen in der gleichen Reihenfolge aus, wie Sie sie im Reiter IST-SOLL-Vergleich eingetragen haben. "]
[null,"Anzahl der befragten Personen ",null,"Wie viele Teilnehmende der Maßnahme wurden befragt und haben den Fragebogen / die Umfrage ausgefüllt?"]
[null,"Anzahl der Antworten pro Frage",null,"Wie viele Antworten liegen auf diese Frage vor? Die Anzahl - auch wenn sie von der Anzahl der Befragten abweicht, bitte hier eintragen. "]
[null,"Fragewortlaut",null,"Wortlaut der Fragen die pro Maßnahme jeweils gestellt wurden. Wie im Musterbeispiel gezeigt, sollen hier - wenn vorhanden - mehrere Fragen pro Maßnahme angeführt werden. "]
[null,"Antwortkategorien der Frage",null,"Welche vorgegebenen Antwortkategorien hatten Ihre befragten Personen zur Auswahl (geschlossene Frage) oder durften sie auf eine offene Frage antworten?"]
[null,"Antworten der befragten Personen ",null,"Wie haben die befragten Personen auf die Frage geantwortet? Bitte geben Sie - wie in den Beispielen - die Anzahl an Personen  pro Antwortkategorie an"]
[null,"4. Reiter Grafische Darstellung "]
[null,"Wenn Sie eine grafische Darstellung für das Feedback der Teilnehmenden wählen, bitte beachten Sie die Anleitung im Reiter Grafische Darstellung selbst. Das Dokument kann ab Zeile 19 bearbeitet werden. "]
[null,"5. Reiter Anektdotensammlung"]
[null,"Kopfzeile",null,"In die Kopfzeile müssen Sie nichts eintragen - nachdem Sie die Information im Reiter Überblick ausgefüllt haben, befüllt sie sich automatisch"]
[null,"grau hinterlegte Zeile nach der Kopfzeile",null,"Hier finden Sie ein fiktives Musterbeispiel zur Eintragung der Anekdoten, an denen Sie sich orientieren können"]
[null,"TN-Nr.",null,"Möchten Sie ein Zitat oder eine Anekdote mit uns teilen? Super! Bitte nummerieren Sie diese. Haben Sie mehrere Zitate von einer Person sammeln können, verwenden Sie bitte die gleiche Nummer (TN-Nr.). Das hilft uns später bei der Auswertung"]
[null,"Gender",null,"Dropdown-Auswahlmenü: \"weiblich\", \"männlich\", \"divers/offen\", \"unbekannt\";  Gender der Person, von der Sie die Rückmeldung gesammelt haben. Wenn Ihnen diese Information nicht bekannt ist oder nicht erhoben wurde, wählen Sie bitte \"unbekannt\" aus"]
[null,"Art der Maßnahme",null,"Auf welche Ihrer Projektmaßnahmen (Workshop, Exkursion, Vortrag, etc.) bezieht sich die Anekdote/ das Direktzitat / die Rückmeldung, die Sie mit uns teilen möchten? Wenn sie zum Beispiel mehrere verschiedene Workshops durchgeführt haben, dann geben Sie bitte \"Workshop 1\" zum Thema \"….\" an. Damit helfen Sie uns das Feedback Ihrer Teilnehmenden gut zuordnen zu können"]
[null,"Anekdote / Direktzitat / Rückmeldung ",null,"gesammelte Anekdote / Direktzitat / Rückmeldung "]
[null,"Erlaubnis zur öffentlichen Nutzung",null,"Dropdown-Auswahlmenü: \"ja\", \"nein\"; Bitte geben Sie an, ob die / das Anekdote / Direktzitat / Rückmeldung von LEA öffentlich genutzt werden darf "]
[null,"Anmerkungen ",null,"Möchten Sie uns sonst noch etwas zu den Anekdoten / Direktzitaten / Rückmeldungen mitteilen, das nicht in unserer Tabelle abgedeckt ist?"]

{"sheet":"1. Überblick","index":1,"n_rows":41,"n_cols":29,"rows_kept":41,"merged":[[12,0,12,6]]}
{"$rows_empty":12}
["Wirkungsmessung - Überblick"]
[]
[]
[null,"Achtung: nur in grün markierten Zellen schreiben (alle anderen sind schreibgeschützt)"]
[]
[]
[null,"Allgemeine Informationen"]
[null,"Organisation: "]
[null,"Projekttitel:"]
[null,"Projektbericht",null,"bitte wählen"]
[]
[null,"Übersicht der Kennzahlen"]
[]
[null,"Maßnahme:",null,{"$f":"IF('2. IST-SOLL-Vergleich'!$A11<>0,'2. IST-SOLL-Vergleich'!$A11, \"\")","v":""},{"$f":"IF('2. IST-SOLL-Vergleich'!$A12<>0,'2. IST-SOLL-Vergleich'!$A12, \"\")","v":""},{"$f":"IF('2. IST-SOLL-Vergleich'!$A13<>0,'2. IST-SOLL-Vergleich'!$A13, \"\")","v":""},{"$f":"IF('2. IST-SOLL-Vergleich'!$A14<>0,'2. IST-SOLL-Vergleich'!$A14, \"\")","v":""},{"$f":"IF('2. IST-SOLL-Vergleich'!$A15<>0,'2. IST-SOLL-Vergleich'!$A15, \"\")","v":""},{"$f":"IF('2. IST-SOLL-Vergleich'!$A16<>0,'2. IST-SOLL-Vergleich'!$A16, \"\")","v":""},{"$f":"IF('2. IST-SOLL-Vergleich'!$A17<>0,'2. IST-SOLL-Vergleich'!$A17, \"\")","v":""},{"$f":"IF('2. IST-SOLL-Vergleich'!$A18<>0,'2. IST-SOLL-Vergleich'!$A18, \"\")","v":""},{"$f":"IF('2. IST-SOLL-Vergleich'!$A19<>0,'2. IST-SOLL-Vergleich'!$A19, \"\")","v":""},{"$f":"IF('2. IST-SOLL-Vergleich'!$A20<>0,'2. IST-SOLL-Vergleich'!$A20, \"\")","v":""},{"$f":"IF('2. IST-SOLL-Vergleich'!$A21<>0,'2. IST-SOLL-Vergleich'!$A21, \"\")","v":""},{"$f":"IF('2. IST-SOLL-Vergleich'!$A22<>0,'2. IST-SOLL-Vergleich'!$A22, \"\")","v":""},{"$f":"IF('2. IST-SOLL-Vergleich'!$A23<>0,'2. IST-SOLL-Vergleich'!$A23, \"\")","v":""},{"$f":"IF('2. IST-SOLL-Vergleich'!$A24<>0,'2. IST-SOLL-Vergleich'!$A24, \"\")","v":""},{"$f":"IF('2. IST-SOLL-Vergleich'!$A25<>0,'2. IST-SOLL-Vergleich'!$A25, \"\")","v":""},{"$f":"IF('2. IST-SOLL-Vergleich'!$A26<>0,'2. IST-SOLL-Vergleich'!$A26, \"\")","v":""},{"$f":"IF('2. IST-SOLL-Vergleich'!$A27<>0,'2. IST-SOLL-Vergleich'!$A27, \"\")","v":""},{"$f":"IF('2. IST-SOLL-Vergleich'!$A28<>0,'2. IST-SOLL-Vergleich'!$A28, \"\")","v":""},{"$f":"IF('2. IST-SOLL-Vergleich'!$A29<>0,'2. IST-SOLL-Vergleich'!$A329, \"\")","v":""},{"$f":"IF('2. IST-SOLL-Vergleich'!$A30<>0,'2. IST-SOLL-Vergleich'!$A30, \"\")","v":""},{"$f":"IF('2. IST-SOLL-Vergleich'!$A31<>0,'2. IST-SOLL-Vergleich'!$A31, \"\")","v":""},{"$f":"IF('2. IST-SOLL-Vergleich'!$A32<>0,'2. IST-SOLL-Vergleich'!$A32, \"\")","v":""},{"$f":"IF('2. IST-SOLL-Vergleich'!$A33<>0,'2. IST-SOLL-Vergleich'!$A33, \"\")","v":""},{"$f":"IF('2. IST-SOLL-Vergleich'!$A34<>0,'2. IST-SOLL-Vergleich'!$A34, \"\")","v":""}]
[null,"Summe der vereinaberten Zielwerte (SOLL) ",null,{"$f":"IF('2. IST-SOLL-Vergleich'!$B11<>0,'2. IST-SOLL-Vergleich'!$B11, \"\")","v":""},{"$f":"IF('2. IST-SOLL-Vergleich'!$B12<>0,'2. IST-SOLL-Vergleich'!$B12, \"\")","v":""},{"$f":"IF('2. IST-SOLL-Vergleich'!$B13<>0,'2. IST-SOLL-Vergleich'!$B13, \"\")","v":""},{"$f":"IF('2. IST-SOLL-Vergleich'!$B14<>0,'2. IST-SOLL-Vergleich'!$B14, \"\")","v":""},{"$f":"IF('2. IST-SOLL-Vergleich'!$B15<>0,'2. IST-SOLL-Vergleich'!$B15, \"\")","v":""},{"$f":"IF('2. IST-SOLL-Vergleich'!$B16<>0,'2. IST-SOLL-Vergleich'!$B16, \"\")","v":""},{"$f":"IF('2. IST-SOLL-Vergleich'!$B17<>0,'2. IST-SOLL-Vergleich'!$B17, \"\")","v":""},{"$f":"IF('2. IST-SOLL-Vergleich'!$B18<>0,'2. IST-SOLL-Vergleich'!$B18, \"\")","v":""},{"$f":"IF('2. IST-SOLL-Vergleich'!$B19<>0,'2. IST-SOLL-Vergleich'!$B19, \"\")","v":""},{"$f":"IF('2. IST-SOLL-Vergleich'!$B20<>0,'2. IST-SOLL-Vergleich'!$B20, \"\")","v":""},{"$f":"IF('2. IST-SOLL-Vergleich'!$B21<>0,'2. IST-SOLL-Vergleich'!$B21, \"\")","v":""},{"$f":"IF('2. IST-SOLL-Vergleich'!$B22<>0,'2. IST-SOLL-Vergleich'!$B22, \"\")","v":""},{"$f":"IF('2. IST-SOLL-Vergleich'!$B23<>0,'2. IST-SOLL-Vergleich'!$B23, \"\")","v":""},{"$f":"IF('2. IST-SOLL-Vergleich'!$B24<>0,'2. IST-SOLL-Vergleich'!$B24, \"\")","v":""},{"$f":"IF('2. IST-SOLL-Vergleich'!$B25<>0,'2. IST-SOLL-Vergleich'!$B25, \"\")","v":""},{"$f":"IF('2. IST-SOLL-Vergleich'!$B26<>0,'2. IST-SOLL-Vergleich'!$B26, \"\")","v":""},{"$f":"IF('2. IST-SOLL-Vergleich'!$B27<>0,'2. IST-SOLL-Vergleich'!$B27, \"\")","v":""},{"$f":"IF('2. IST-SOLL-Vergleich'!$B28<>0,'2. IST-SOLL-Vergleich'!$B28, \"\")","v":""},{"$f":"IF('2. IST-SOLL-Vergleich'!$B29<>0,'2. IST-SOLL-Vergleich'!$B29, \"\")","v":""},{"$f":"IF('2. IST-SOLL-Vergleich'!$B30<>0,'2. IST-SOLL-Vergleich'!$B30, \"\")","v":""},{"$f":"IF('2. IST-SOLL-Vergleich'!$B31<>0,'2. IST-SOLL-Vergleich'!$B31, \"\")","v":""},{"$f":"IF('2. IST-SOLL-Vergleich'!$B32<>0,'2. IST-SOLL-Vergleich'!$B32, \"\")","v":""},{"$f":"IF('2. IST-SOLL-Vergleich'!$B33<>0,'2. IST-SOLL-Vergleich'!$B33, \"\")","v":""},{"$f":"IF('2. IST-SOLL-Vergleich'!$B34<>0,'2. IST-SOLL-Vergleich'!$B34, \"\")","v":""}]
[null,"Summe der erreichten Werte (IST)",null,{"$f":"IF('2. IST-SOLL-Vergleich'!$C11<>0,'2. IST-SOLL-Vergleich'!$C11, \"\")","v":""},{"$f":"IF('2. IST-SOLL-Vergleich'!$C12<>0,'2. IST-SOLL-Vergleich'!$C12, \"\")","v":""},{"$f":"IF('2. IST-SOLL-Vergleich'!$C13<>0,'2. IST-SOLL-Vergleich'!$C13, \"\")","v":""},{"$f":"IF('2. IST-SOLL-Vergleich'!$C14<>0,'2. IST-SOLL-Vergleich'!$C14, \"\")","v":""},{"$f":"IF('2. IST-SOLL-Vergleich'!$C15<>0,'2. IST-SOLL-Vergleich'!$C15, \"\")","v":""},{"$f":"IF('2. IST-SOLL-Vergleich'!$C16<>0,'2. IST-SOLL-Vergleich'!$C16, \"\")","v":""},{"$f":"IF('2. IST-SOLL-Vergleich'!$C17<>0,'2. IST-SOLL-Vergleich'!$C17, \"\")","v":""},{"$f":"IF('2. IST-SOLL-Vergleich'!$C18<>0,'2. IST-SOLL-Vergleich'!$C18, \"\")","v":""},{"$f":"IF('2. IST-SOLL-Vergleich'!$C19<>0,'2. IST-SOLL-Vergleich'!$C19, \"\")","v":""},{"$f":"IF('2. IST-SOLL-Vergleich'!$C20<>0,'2. IST-SOLL-Vergleich'!$C20, \"\")","v":""},{"$f":"IF('2. IST-SOLL-Vergleich'!$C21<>0,'2. IST-SOLL-Vergleich'!$C21, \"\")","v":""},{"$f":"IF('2. IST-SOLL-Vergleich'!$C22<>0,'2. IST-SOLL-Vergleich'!$C22, \"\")","v":""},{"$f":"IF('2. IST-SOLL-Vergleich'!$C23<>0,'2. IST-SOLL-Vergleich'!$C23, \"\")","v":""},{"$f":"IF('2. IST-SOLL-Vergleich'!$C24<>0,'2. IST-SOLL-Vergleich'!$C24, \"\")","v":""},{"$f":"IF('2. IST-SOLL-Vergleich'!$C25<>0,'2. IST-SOLL-Vergleich'!$C25, \"\")","v":""},{"$f":"IF('2. IST-SOLL-Vergleich'!$C26<>0,'2. IST-SOLL-Vergleich'!$C26, \"\")","v":""},{"$f":"IF('2. IST-SOLL-Vergleich'!$C27<>0,'2. IST-SOLL-Vergleich'!$C27, \"\")","v":""},{"$f":"IF('2. IST-SOLL-Vergleich'!$C28<>0,'2. IST-SOLL-Vergleich'!$C28, \"\")","v":""},{"$f":"IF('2. IST-SOLL-Vergleich'!$C29<>0,'2. IST-SOLL-Vergleich'!$C29, \"\")","v":""},{"$f":"IF('2. IST-SOLL-Vergleich'!$C30<>0,'2. IST-SOLL-Vergleich'!$C30, \"\")","v":""},{"$f":"IF('2. IST-SOLL-Vergleich'!$C31<>0,'2. IST-SOLL-Vergleich'!$C31, \"\")","v":""},{"$f":"IF('2. IST-SOLL-Vergleich'!$C32<>0,'2. IST-SOLL-Vergleich'!$C32, \"\")","v":""},{"$f":"IF('2. IST-SOLL-Vergleich'!$C33<>0,'2. IST-SOLL-Vergleich'!$C33, \"\")","v":""},{"$f":"IF('2. IST-SOLL-Vergleich'!$C34<>0,'2. IST-SOLL-Vergleich'!$C34, \"\")","v":""}]
[null,"% erfüllt",null,{"$f":"IF('2. IST-SOLL-Vergleich'!$D11<>0,'2. IST-SOLL-Vergleich'!$D11, \"\")","v":""},{"$f":"IF('2. IST-SOLL-Vergleich'!$D12<>0,'2. IST-SOLL-Vergleich'!$D12, \"\")","v":""},{"$f":"IF('2. IST-SOLL-Vergleich'!$D13<>0,'2. IST-SOLL-Vergleich'!$D13, \"\")","v":""},{"$f":"IF('2. IST-SOLL-Vergleich'!$D14<>0,'2. IST-SOLL-Vergleich'!$D14, \"\")","v":""},{"$f":"IF('2. IST-SOLL-Vergleich'!$D15<>0,'2. IST-SOLL-Vergleich'!$D15, \"\")","v":""},{"$f":"IF('2. IST-SOLL-Vergleich'!$D16<>0,'2. IST-SOLL-Vergleich'!$D16, \"\")","v":""},{"$f":"IF('2. IST-SOLL-Vergleich'!$D17<>0,'2. IST-SOLL-Vergleich'!$D17, \"\")","v":""},{"$f":"IF('2. IST-SOLL-Vergleich'!$D18<>0,'2. IST-SOLL-Vergleich'!$D18, \"\")","v":""},{"$f":"IF('2. IST-SOLL-Vergleich'!$D19<>0,'2. IST-SOLL-Vergleich'!$D19, \"\")","v":""},{"$f":"IF('2. IST-SOLL-Vergleich'!$D20<>0,'2. IST-SOLL-Vergleich'!$D20, \"\")","v":""},{"$f":"IF('2. IST-SOLL-Vergleich'!$D21<>0,'2. IST-SOLL-Vergleich'!$D21, \"\")","v":""},{"$f":"IF('2. IST-SOLL-Vergleich'!$D22<>0,'2. IST-SOLL-Vergleich'!$D22, \"\")","v":""},{"$f":"IF('2. IST-SOLL-Vergleich'!$D23<>0,'2. IST-SOLL-Vergleich'!$D23, \"\")","v":""},{"$f":"IF('2. IST-SOLL-Vergleich'!$D24<>0,'2. IST-SOLL-Vergleich'!$D24, \"\")","v":""},{"$f":"IF('2. IST-SOLL-Vergleich'!$D25<>0,'2. IST-SOLL-Vergleich'!$D25, \"\")","v":""},{"$f":"IF('2. IST-SOLL-Vergleich'!$D26<>0,'2. IST-SOLL-Vergleich'!$D26, \"\")","v":""},{"$f":"IF('2. IST-SOLL-Vergleich'!$D27<>0,'2. IST-SOLL-Vergleich'!$D27, \"\")","v":""},{"$f":"IF('2. IST-SOLL-Vergleich'!$D28<>0,'2. IST-SOLL-Vergleich'!$D28, \"\")","v":""},{"$f":"IF('2. IST-SOLL-Vergleich'!$D29<>0,'2. IST-SOLL-Vergleich'!$D29, \"\")","v":""},{"$f":"IF('2. IST-SOLL-Vergleich'!$D30<>0,'2. IST-SOLL-Vergleich'!$D30, \"\")","v":""},{"$f":"IF('2. IST-SOLL-Vergleich'!$D31<>0,'2. IST-SOLL-Vergleich'!$D31, \"\")","v":""},{"$f":"IF('2. IST-SOLL-Vergleich'!$D32<>0,'2. IST-SOLL-Vergleich'!$D32, \"\")","v":""},{"$f":"IF('2. IST-SOLL-Vergleich'!$D33<>0,'2. IST-SOLL-Vergleich'!$D33, \"\")","v":""},{"$f":"IF('2. IST-SOLL-Vergleich'!$D34<>0,'2. IST-SOLL-Vergleich'!$D34, \"\")","v":""}]
[]
[null,"Teilnehmende:"]
[null,"Summe der vereinaberten Zielwerte (SOLL) ",null,{"$f":"IF('2. IST-SOLL-Vergleich'!$E11<>0,'2. IST-SOLL-Vergleich'!$E11, \"\")","v":""},{"$f":"IF('2. IST-SOLL-Vergleich'!$E12<>0,'2. IST-SOLL-Vergleich'!$E12, \"\")","v":""},{"$f":"IF('2. IST-SOLL-Vergleich'!$E13<>0,'2. IST-SOLL-Vergleich'!$E13, \"\")","v":""},{"$f":"IF('2. IST-SOLL-Vergleich'!$E14<>0,'2. IST-SOLL-Vergleich'!$E14, \"\")","v":""},{"$f":"IF('2. IST-SOLL-Vergleich'!$E15<>0,'2. IST-SOLL-Vergleich'!$E15, \"\")","v":""},{"$f":"IF('2. IST-SOLL-Vergleich'!$E16<>0,'2. IST-SOLL-Vergleich'!$E16, \"\")","v":""},{"$f":"IF('2. IST-SOLL-Vergleich'!$E17<>0,'2. IST-SOLL-Vergleich'!$E17, \"\")","v":""},{"$f":"IF('2. IST-SOLL-Vergleich'!$E18<>0,'2. IST-SOLL-Vergleich'!$E18, \"\")","v":""},{"$f":"IF('2. IST-SOLL-Vergleich'!$E19<>0,'2. IST-SOLL-Vergleich'!$E19, \"\")","v":""},{"$f":"IF('2. IST-SOLL-Vergleich'!$E20<>0,'2. IST-SOLL-Vergleich'!$E20, \"\")","v":""},{"$f":"IF('2. IST-SOLL-Vergleich'!$E21<>0,'2. IST-SOLL-Vergleich'!$E21, \"\")","v":""},{"$f":"IF('2. IST-SOLL-Vergleich'!$E22<>0,'2. IST-SOLL-Vergleich'!$E22, \"\")","v":""},{"$f":"IF('2. IST-SOLL-Vergleich'!$E23<>0,'2. IST-SOLL-Vergleich'!$E23, \"\")","v":""},{"$f":"IF('2. IST-SOLL-Vergleich'!$E24<>0,'2. IST-SOLL-Vergleich'!$E24, \"\")","v":""},{"$f":"IF('2. IST-SOLL-Vergleich'!$E25<>0,'2. IST-SOLL-Vergleich'!$E25, \"\")","v":""},{"$f":"IF('2. IST-SOLL-Vergleich'!$E26<>0,'2. IST-SOLL-Vergleich'!$E26, \"\")","v":""},{"$f":"IF('2. IST-SOLL-Vergleich'!$E27<>0,'2. IST-SOLL-Vergleich'!$E27, \"\")","v":""},{"$f":"IF('2. IST-SOLL-Vergleich'!$E28<>0,'2. IST-SOLL-Vergleich'!$E28, \"\")","v":""},{"$f":"IF('2. IST-SOLL-Vergleich'!$E29<>0,'2. IST-SOLL-Vergleich'!$E29, \"\")","v":""},{"$f":"IF('2. IST-SOLL-Vergleich'!$E30<>0,'2. IST-SOLL-Vergleich'!$E30, \"\")","v":""},{"$f":"IF('2. IST-SOLL-Vergleich'!$E31<>0,'2. IST-SOLL-Vergleich'!$E231, \"\")","v":""},{"$f":"IF('2. IST-SOLL-Vergleich'!$E32<>0,'2. IST-SOLL-Vergleich'!$E32, \"\")","v":""},{"$f":"IF('2. IST-SOLL-Vergleich'!$E33<>0,'2. IST-SOLL-Vergleich'!$E33, \"\")","v":""},{"$f":"IF('2. IST-SOLL-Vergleich'!$E34<>0,'2. IST-SOLL-Vergleich'!$E34, \"\")","v":""}]
[null,"Summe der erreichten Werte (IST)",null,{"$f":"IF('2. IST-SOLL-Vergleich'!$F11<>0,'2. IST-SOLL-Vergleich'!$F11, \"\")","v":""},{"$f":"IF('2. IST-SOLL-Vergleich'!$F12<>0,'2. IST-SOLL-Vergleich'!$F12, \"\")","v":""},{"$f":"IF('2. IST-SOLL-Vergleich'!$F13<>0,'2. IST-SOLL-Vergleich'!$F13, \"\")","v":""},{"$f":"IF('2. IST-SOLL-Vergleich'!$F14<>0,'2. IST-SOLL-Vergleich'!$F14, \"\")","v":""},{"$f":"IF('2. IST-SOLL-Vergleich'!$F15<>0,'2. IST-SOLL-Vergleich'!$F15, \"\")","v":""},{"$f":"IF('2. IST-SOLL-Vergleich'!$F16<>0,'2. IST-SOLL-Vergleich'!$F16, \"\")","v":""},{"$f":"IF('2. IST-SOLL-Vergleich'!$F17<>0,'2. IST-SOLL-Vergleich'!$F17, \"\")","v":""},{"$f":"IF('2. IST-SOLL-Vergleich'!$F18<>0,'2. IST-SOLL-Vergleich'!$F18, \"\")","v":""},{"$f":"IF('2. IST-SOLL-Vergleich'!$F19<>0,'2. IST-SOLL-Vergleich'!$F19, \"\")","v":""},{"$f":"IF('2. IST-SOLL-Vergleich'!$F20<>0,'2. IST-SOLL-Vergleich'!$F20, \"\")","v":""},{"$f":"IF('2. IST-SOLL-Vergleich'!$F21<>0,'2. IST-SOLL-Vergleich'!$F21, \"\")","v":""},{"$f":"IF('2. IST-SOLL-Vergleich'!$F22<>0,'2. IST-SOLL-Vergleich'!$F22, \"\")","v":""},{"$f":"IF('2. IST-SOLL-Vergleich'!$F23<>0,'2. IST-SOLL-Vergleich'!$F23, \"\")","v":""},{"$f":"IF('2. IST-SOLL-Vergleich'!$F24<>0,'2. IST-SOLL-Vergleich'!$F24, \"\")","v":""},{"$f":"IF('2. IST-SOLL-Vergleich'!$F25<>0,'2. IST-SOLL-Vergleich'!$F25, \"\")","v":""},{"$f":"IF('2. IST-SOLL-Vergleich'!$F26<>0,'2. IST-SOLL-Vergleich'!$F26, \"\")","v":""},{"$f":"IF('2. IST-SOLL-Vergleich'!$F27<>0,'2. IST-SOLL-Vergleich'!$F27, \"\")","v":""},{"$f":"IF('2. IST-SOLL-Vergleich'!$F28<>0,'2. IST-SOLL-Vergleich'!$F28, \"\")","v":""},{"$f":"IF('2. IST-SOLL-Vergleich'!$F29<>0,'2. IST-SOLL-Vergleich'!$F29, \"\")","v":""},{"$f":"IF('2. IST-SOLL-Vergleich'!$F30<>0,'2. IST-SOLL-Vergleich'!$F30, \"\")","v":""},{"$f":"IF('2. IST-SOLL-Vergleich'!$F31<>0,'2. IST-SOLL-Vergleich'!$F31, \"\")","v":""},{"$f":"IF('2. IST-SOLL-Vergleich'!$F32<>0,'2. IST-SOLL-Vergleich'!$F32, \"\")","v":""},{"$f":"IF('2. IST-SOLL-Vergleich'!$F33<>0,'2. IST-SOLL-Vergleich'!$F33, \"\")","v":""},{"$f":"IF('2. IST-SOLL-Vergleich'!$F34<>0,'2. IST-SOLL-Vergleich'!$F34, \"\")","v":""}]
[null,"% erfüllt",null,{"$f":"IF('2. IST-SOLL-Vergleich'!$G11<>0,'2. IST-SOLL-Vergleich'!$G11, \"\")","v":""},{"$f":"IF('2. IST-SOLL-Vergleich'!$G12<>0,'2. IST-SOLL-Vergleich'!$G12, \"\")","v":""},{"$f":"IF('2. IST-SOLL-Vergleich'!$G13<>0,'2. IST-SOLL-Vergleich'!$G13, \"\")","v":""},{"$f":"IF('2. IST-SOLL-Vergleich'!$G14<>0,'2. IST-SOLL-Vergleich'!$G14, \"\")","v":""},{"$f":"IF('2. IST-SOLL-Vergleich'!$G15<>0,'2. IST-SOLL-Vergleich'!$G15, \"\")","v":""},{"$f":"IF('2. IST-SOLL-Vergleich'!$G16<>0,'2. IST-SOLL-Vergleich'!$G16, \"\")","v":""},{"$f":"IF('2. IST-SOLL-Vergleich'!$G17<>0,'2. IST-SOLL-Vergleich'!$G17, \"\")","v":""},{"$f":"IF('2. IST-SOLL-Vergleich'!$G18<>0,'2. IST-SOLL-Vergleich'!$G18, \"\")","v":""},{"$f":"IF('2. IST-SOLL-Vergleich'!$G19<>0,'2. IST-SOLL-Vergleich'!$G19, \"\")","v":""},{"$f":"IF('2. IST-SOLL-Vergleich'!$G20<>0,'2. IST-SOLL-Vergleich'!$G20, \"\")","v":""},{"$f":"IF('2. IST-SOLL-Vergleich'!$G21<>0,'2. IST-SOLL-Vergleich'!$G21, \"\")","v":""},{"$f":"IF('2. IST-SOLL-Vergleich'!$G22<>0,'2. IST-SOLL-Vergleich'!$G22, \"\")","v":""},{"$f":"IF('2. IST-SOLL-Vergleich'!$G23<>0,'2. IST-SOLL-Vergleich'!$G23, \"\")","v":""},{"$f":"IF('2. IST-SOLL-Vergleich'!$G24<>0,'2. IST-SOLL-Vergleich'!$G24, \"\")","v":""},{"$f":"IF('2. IST-SOLL-Vergleich'!$G25<>0,'2. IST-SOLL-Vergleich'!$G25, \"\")","v":""},{"$f":"IF('2. IST-SOLL-Vergleich'!$G26<>0,'2. IST-SOLL-Vergleich'!$G26, \"\")","v":""},{"$f":"IF('2. IST-SOLL-Vergleich'!$G27<>0,'2. IST-SOLL-Vergleich'!$G27, \"\")","v":""},{"$f":"IF('2. IST-SOLL-Vergleich'!$G28<>0,'2. IST-SOLL-Vergleich'!$G28, \"\")","v":""},{"$f":"IF('2. IST-SOLL-Vergleich'!$G29<>0,'2. IST-SOLL-Vergleich'!$G29, \"\")","v":""},{"$f":"IF('2. IST-SOLL-Vergleich'!$G30<>0,'2. IST-SOLL-Vergleich'!$G30, \"\")","v":""},{"$f":"IF('2. IST-SOLL-Vergleich'!$G31<>0,'2. IST-SOLL-Vergleich'!$G31, \"\")","v":""},{"$f":"IF('2. IST-SOLL-Vergleich'!$G32<>0,'2. IST-SOLL-Vergleich'!$G32, \"\")","v":""},{"$f":"IF('2. IST-SOLL-Vergleich'!$G33<>0,'2. IST-SOLL-Vergleich'!$G33, \"\")","v":""},{"$f":"IF('2. IST-SOLL-Vergleich'!$G34<>0,'2. IST-SOLL-Vergleich'!$G34, \"\")","v":""}]
[null,"Anzahl der Befragten Personen",null,{"$f":"IF(OR(ISBLANK('3. TN Feedback in Zahlen'!$A12), '2. IST-SOLL-Vergleich'!$A11<>'3. TN Feedback in Zahlen'!$A12), \"\", '3. TN Feedback in Zahlen'!$C12)","v":""},{"$f":"IF(OR(ISBLANK('3. TN Feedback in Zahlen'!$A13), '2. IST-SOLL-Vergleich'!$A12<>'3. TN Feedback in Zahlen'!$A13), \"\", '3. TN Feedback in Zahlen'!$C13)","v":""},{"$f":"IF(OR(ISBLANK('3. TN Feedback in Zahlen'!$A14), '2. IST-SOLL-Vergleich'!$A13<>'3. TN Feedback in Zahlen'!$A14), \"\", '3. TN Feedback in Zahlen'!$C14)","v":""},{"$f":"IF(OR(ISBLANK('3. TN Feedback in Zahlen'!$A15), '2. IST-SOLL-Vergleich'!$A14<>'3. TN Feedback in Zahlen'!$A15), \"\", '3. TN Feedback in Zahlen'!$C15)","v":""},{"$f":"IF(OR(ISBLANK('3. TN Feedback in Zahlen'!$A16), '2. IST-SOLL-Vergleich'!$A15<>'3. TN Feedback in Zahlen'!$A16), \"\", '3. TN Feedback in Zahlen'!$C16)","v":""},{"$f":"IF(OR(ISBLANK('3. TN Feedback in Zahlen'!$A17), '2. IST-SOLL-Vergleich'!$A16<>'3. TN Feedback in Zahlen'!$A17), \"\", '3. TN Feedback in Zahlen'!$C17)","v":""},{"$f":"IF(OR(ISBLANK('3. TN Feedback in Zahlen'!$A18), '2. IST-SOLL-Vergleich'!$A17<>'3. TN Feedback in Zahlen'!$A18), \"\", '3. TN Feedback in Zahlen'!$C18)","v":""},{"$f":"IF(OR(ISBLANK('3. TN Feedback in Zahlen'!$A19), '2. IST-SOLL-Vergleich'!$A18<>'3. TN Feedback in Zahlen'!$A19), \"\", '3. TN Feedback in Zahlen'!$C19)","v":""},{"$f":"IF(OR(ISBLANK('3. TN Feedback in Zahlen'!$A20), '2. IST-SOLL-Vergleich'!$A19<>'3. TN Feedback in Zahlen'!$A20), \"\", '3. TN Feedback in Zahlen'!$C20)","v":""},{"$f":"IF(OR(ISBLANK('3. TN Feedback in Zahlen'!$A21), '2. IST-SOLL-Vergleich'!$A20<>'3. TN Feedback in Zahlen'!$A21), \"\", '3. TN Feedback in Zahlen'!$C21)","v":""},{"$f":"IF(OR(ISBLANK('3. TN Feedback in Zahlen'!$A22), '2. IST-SOLL-Vergleich'!$A21<>'3. TN Feedback in Zahlen'!$A22), \"\", '3. TN Feedback in Zahlen'!$C22)","v":""},{"$f":"IF(OR(ISBLANK('3. TN Feedback in Zahlen'!$A23), '2. IST-SOLL-Vergleich'!$A22<>'3. TN Feedback in Zahlen'!$A23), \"\", '3. TN Feedback in Zahlen'!$C23)","v":""},{"$f":"IF(OR(ISBLANK('3. TN Feedback in Zahlen'!$A24), '2. IST-SOLL-Vergleich'!$A23<>'3. TN Feedback in Zahlen'!$A24), \"\", '3. TN Feedback in Zahlen'!$C24)","v":""},{"$f":"IF(OR(ISBLANK('3. TN Feedback in Zahlen'!$A25), '2. IST-SOLL-Vergleich'!$A24<>'3. TN Feedback in Zahlen'!$A25), \"\", '3. TN Feedback in Zahlen'!$C25)","v":""},{"$f":"IF(OR(ISBLANK('3. TN Feedback in Zahlen'!$A26), '2. IST-SOLL-Vergleich'!$A25<>'3. TN Feedback in Zahlen'!$A26), \"\", '3. TN Feedback in Zahlen'!$C26)","v":""},{"$f":"IF(OR(ISBLANK('3. TN Feedback in Zahlen'!$A27), '2. IST-SOLL-Vergleich'!$A26<>'3. TN Feedback in Zahlen'!$A27), \"\", '3. TN Feedback in Zahlen'!$C27)","v":""},{"$f":"IF(OR(ISBLANK('3. TN Feedback in Zahlen'!$A28), '2. IST-SOLL-Vergleich'!$A27<>'3. TN Feedback in Zahlen'!$A28), \"\", '3. TN Feedback in Zahlen'!$C28)","v":""},{"$f":"IF(OR(ISBLANK('3. TN Feedback in Zahlen'!$A29), '2. IST-SOLL-Vergleich'!$A28<>'3. TN Feedback in Zahlen'!$A29), \"\", '3. TN Feedback in Zahlen'!$C29)","v":""},{"$f":"IF(OR(ISBLANK('3. TN Feedback in Zahlen'!$A30), '2. IST-SOLL-Vergleich'!$A29<>'3. TN Feedback in Zahlen'!$A30), \"\", '3. TN Feedback in Zahlen'!$C30)","v":""},{"$f":"IF(OR(ISBLANK('3. TN Feedback in Zahlen'!$A31), '2. IST-SOLL-Vergleich'!$A30<>'3. TN Feedback in Zahlen'!$A31), \"\", '3. TN Feedback in Zahlen'!$C31)","v":""},{"$f":"IF(OR(ISBLANK('3. TN Feedback in Zahlen'!$A32), '2. IST-SOLL-Vergleich'!$A31<>'3. TN Feedback in Zahlen'!$A32), \"\", '3. TN Feedback in Zahlen'!$C32)","v":""},{"$f":"IF(OR(ISBLANK('3. TN Feedback in Zahlen'!$A33), '2. IST-SOLL-Vergleich'!$A32<>'3. TN Feedback in Zahlen'!$A33), \"\", '3. TN Feedback in Zahlen'!$C33)","v":""},{"$f":"IF(OR(ISBLANK('3. TN Feedback in Zahlen'!$A34), '2. IST-SOLL-Vergleich'!$A33<>'3. TN Feedback in Zahlen'!$A34), \"\", '3. TN Feedback in Zahlen'!$C34)","v":""},{"$f":"IF(OR(ISBLANK('3. TN Feedback in Zahlen'!$A35), '2. IST-SOLL-Vergleich'!$A34<>'3. TN Feedback in Zahlen'!$A35), \"\", '3. TN Feedback in Zahlen'!$C35)","v":""}]
[null,"% der erreichten TN",null,{"$f":"IF(OR(D35=\"keine Befragung durchgeführt\", D35=\"\"),\"\",D35/D33)","v":""},{"$f":"IF(OR(E35=\"keine Befragung durchgeführt\", E35=\"\"),\"\",E35/E33)","v":""},{"$f":"IF(OR(F35=\"keine Befragung durchgeführt\", F35=\"\"),\"\",F35/F33)","v":""},"","","","","","","",{"$f":"IF(OR(N35=\"keine Befragung durchgeführt\", N35=\"\"),\"\",N35/N33)","v":""},{"$f":"IF(OR(O35=\"keine Befragung durchgeführt\", O35=\"\"),\"\",O35/O33)","v":""},"","","","","","","","","","","","","",""]
[]
[]
[null,"Gender: "]
[null,"vereinbarte Mindest-Zielwerte (SOLL) Mädchen / Frauen (%)",null,{"$f":"IF('2. IST-SOLL-Vergleich'!$H11<>0,'2. IST-SOLL-Vergleich'!$H11, \"\")","v":""},{"$f":"IF('2. IST-SOLL-Vergleich'!$H12<>0,'2. IST-SOLL-Vergleich'!$H12, \"\")","v":""},{"$f":"IF('2. IST-SOLL-Vergleich'!$H13<>0,'2. IST-SOLL-Vergleich'!$H13, \"\")","v":""},{"$f":"IF('2. IST-SOLL-Vergleich'!$H14<>0,'2. IST-SOLL-Vergleich'!$H14, \"\")","v":""},{"$f":"IF('2. IST-SOLL-Vergleich'!$H15<>0,'2. IST-SOLL-Vergleich'!$H15, \"\")","v":""},{"$f":"IF('2. IST-SOLL-Vergleich'!$H16<>0,'2. IST-SOLL-Vergleich'!$H16, \"\")","v":""},{"$f":"IF('2. IST-SOLL-Vergleich'!$H17<>0,'2. IST-SOLL-Vergleich'!$H17, \"\")","v":""},{"$f":"IF('2. IST-SOLL-Vergleich'!$H18<>0,'2. IST-SOLL-Vergleich'!$H18, \"\")","v":""},{"$f":"IF('2. IST-SOLL-Vergleich'!$H19<>0,'2. IST-SOLL-Vergleich'!$H19, \"\")","v":""},{"$f":"IF('2. IST-SOLL-Vergleich'!$H20<>0,'2. IST-SOLL-Vergleich'!$H20, \"\")","v":""},{"$f":"IF('2. IST-SOLL-Vergleich'!$H21<>0,'2. IST-SOLL-Vergleich'!$H21, \"\")","v":""},{"$f":"IF('2. IST-SOLL-Vergleich'!$H22<>0,'2. IST-SOLL-Vergleich'!$H22, \"\")","v":""},{"$f":"IF('2. IST-SOLL-Vergleich'!$H23<>0,'2. IST-SOLL-Vergleich'!$H23, \"\")","v":""},{"$f":"IF('2. IST-SOLL-Vergleich'!$H24<>0,'2. IST-SOLL-Vergleich'!$H24, \"\")","v":""},{"$f":"IF('2. IST-SOLL-Vergleich'!$H25<>0,'2. IST-SOLL-Vergleich'!$H25, \"\")","v":""},{"$f":"IF('2. IST-SOLL-Vergleich'!$H26<>0,'2. IST-SOLL-Vergleich'!$H26, \"\")","v":""},{"$f":"IF('2. IST-SOLL-Vergleich'!$H27<>0,'2. IST-SOLL-Vergleich'!$H27, \"\")","v":""},{"$f":"IF('2. IST-SOLL-Vergleich'!$H28<>0,'2. IST-SOLL-Vergleich'!$H28, \"\")","v":""},{"$f":"IF('2. IST-SOLL-Vergleich'!$H29<>0,'2. IST-SOLL-Vergleich'!$H29, \"\")","v":""},{"$f":"IF('2. IST-SOLL-Vergleich'!$H30<>0,'2. IST-SOLL-Vergleich'!$H30, \"\")","v":""},{"$f":"IF('2. IST-SOLL-Vergleich'!$H31<>0,'2. IST-SOLL-Vergleich'!$H31, \"\")","v":""},{"$f":"IF('2. IST-SOLL-Vergleich'!$H32<>0,'2. IST-SOLL-Vergleich'!$H32, \"\")","v":""},{"$f":"IF('2. IST-SOLL-Vergleich'!$H33<>0,'2. IST-SOLL-Vergleich'!$H33, \"\")","v":""},{"$f":"IF('2. IST-SOLL-Vergleich'!$H34<>0,'2. IST-SOLL-Vergleich'!$H34, \"\")","v":""}]
[null,"erreiche Werte (IST) Mädchen / Frauen (%)",null,{"$f":"IF('2. IST-SOLL-Vergleich'!$I11<>0,'2. IST-SOLL-Vergleich'!$I11, \"\")","v":""},{"$f":"IF('2. IST-SOLL-Vergleich'!$I12<>0,'2. IST-SOLL-Vergleich'!$I12, \"\")","v":""},{"$f":"IF('2. IST-SOLL-Vergleich'!$I13<>0,'2. IST-SOLL-Vergleich'!$I13, \"\")","v":""},{"$f":"IF('2. IST-SOLL-Vergleich'!$I14<>0,'2. IST-SOLL-Vergleich'!$I14, \"\")","v":""},{"$f":"IF('2. IST-SOLL-Vergleich'!$I15<>0,'2. IST-SOLL-Vergleich'!$I15, \"\")","v":""},{"$f":"IF('2. IST-SOLL-Vergleich'!$I16<>0,'2. IST-SOLL-Vergleich'!$I16, \"\")","v":""},{"$f":"IF('2. IST-SOLL-Vergleich'!$I17<>0,'2. IST-SOLL-Vergleich'!$I17, \"\")","v":""},{"$f":"IF('2. IST-SOLL-Vergleich'!$I18<>0,'2. IST-SOLL-Vergleich'!$I18, \"\")","v":""},{"$f":"IF('2. IST-SOLL-Vergleich'!$I19<>0,'2. IST-SOLL-Vergleich'!$I19, \"\")","v":""},{"$f":"IF('2. IST-SOLL-Vergleich'!$I20<>0,'2. IST-SOLL-Vergleich'!$I20, \"\")","v":""},{"$f":"IF('2. IST-SOLL-Vergleich'!$I21<>0,'2. IST-SOLL-Vergleich'!$I21, \"\")","v":""},{"$f":"IF('2. IST-SOLL-Vergleich'!$I22<>0,'2. IST-SOLL-Vergleich'!$I22, \"\")","v":""},{"$f":"IF('2. IST-SOLL-Vergleich'!$I23<>0,'2. IST-SOLL-Vergleich'!$I23, \"\")","v":""},{"$f":"IF('2. IST-SOLL-Vergleich'!$I24<>0,'2. IST-SOLL-Vergleich'!$I24, \"\")","v":""},{"$f":"IF('2. IST-SOLL-Vergleich'!$I25<>0,'2. IST-SOLL-Vergleich'!$I25, \"\")","v":""},{"$f":"IF('2. IST-SOLL-Vergleich'!$I26<>0,'2. IST-SOLL-Vergleich'!$I26, \"\")","v":""},{"$f":"IF('2. IST-SOLL-Vergleich'!$I27<>0,'2. IST-SOLL-Vergleich'!$I27, \"\")","v":""},{"$f":"IF('2. IST-SOLL-Vergleich'!$I28<>0,'2. IST-SOLL-Vergleich'!$I28, \"\")","v":""},{"$f":"IF('2. IST-SOLL-Vergleich'!$I29<>0,'2. IST-SOLL-Vergleich'!$I29, \"\")","v":""},{"$f":"IF('2. IST-SOLL-Vergleich'!$I30<>0,'2. IST-SOLL-Vergleich'!$I30, \"\")","v":""},{"$f":"IF('2. IST-SOLL-Vergleich'!$I31<>0,'2. IST-SOLL-Vergleich'!$I31, \"\")","v":""},{"$f":"IF('2. IST-SOLL-Vergleich'!$I32<>0,'2. IST-SOLL-Vergleich'!$I32, \"\")","v":""},{"$f":"IF('2. IST-SOLL-Vergleich'!$I33<>0,'2. IST-SOLL-Vergleich'!$I33, \"\")","v":""},{"$f":"IF('2. IST-SOLL-Vergleich'!$I34<>0,'2. IST-SOLL-Vergleich'!$I34, \"\")","v":""}]

{"sheet":"2. IST-SOLL-Vergleich","index":2,"n_rows":34,"n_cols":9,"rows_kept":34}
[]
[null,"Vergleich der IST-SOLL Kennzahlen vereinbarter Projektmaßnahmen "]
[]
[null,"Organisation:",{"$f":"'1. Überblick'!D20","v":0}]
[null,"Projekttitel:",{"$f":"'1. Überblick'!D21","v":0}]
[null,"Projektbericht:",{"$f":"'1. Überblick'!D22","v":"bitte wählen"}]
[]
["Maßnahme ","Summe der vereinbarten Zielwerte (SOLL) - Maßnahme","Summe der erreichten Werte (IST) - Maßnahme","%","Summe der vereinbarten Zielwerte (SOLL) - Teilnehmende","Summe der erreichten Werte (IST) - Teilnehmende","%","vereinbarte Mindest-Zielwerte (SOLL) - Mädchen / Frauen (%)","erreichte Werte (IST) - Mädchen / Frauen (%)"]
["Vorträge (fiktives Beispiel)",2,1,{"$f":"C9/B9","v":{"v":0.5,"d":"50.0%"}},300,150,{"$f":"F9/E9","v":{"v":0.5,"d":"50.0%"}},"N/A",{"v":0.75,"d":"75%"}]
["Workshops (fiktives Beispiel)",15,6,{"$f":"C10/B10","v":{"v":0.4,"d":"40.0%"}},150,90,{"$f":"F10/E10","v":{"v":0.6,"d":"60.0%"}},{"v":0.7,"d":"70%"},{"v":0.9,"d":"90%"}]
[{"$nulls":3},{"$f":"IF(B11<>0, C11/B11, \"\")","v":""},null,null,{"$f":"IF(E11<>0, F11/E11, \"\")","v":""}]
[{"$nulls":3},{"$f":"IF(B12<>0, C12/B12, \"\")","v":""},null,null,{"$f":"IF(E12<>0, F12/E12, \"\")","v":""}]
[{"$nulls":3},"",null,null,""]
[{"$nulls":3},"",null,null,""]
[{"$nulls":3},"",null,null,""]
[{"$nulls":3},"",null,null,""]
[{"$nulls":3},"",null,null,""]
[{"$nulls":3},"",null,null,""]
[{"$nulls":3},"",null,null,""]
[{"$nulls":3},"",null,null,""]
[{"$nulls":3},"",null,null,""]
[{"$nulls":3},"",null,null,""]
[{"$nulls":3},"",null,null,""]
[{"$nulls":3},"",null,null,""]
[{"$nulls":3},"",null,null,""]
[{"$nulls":3},"",null,null,""]
[{"$nulls":3},"",null,null,""]
[{"$nulls":3},"",null,null,""]
[{"$nulls":3},"",null,null,""]
[{"$nulls":3},"",null,null,""]
[{"$nulls":3},"",null,null,""]
[{"$nulls":3},"",null,null,""]
[{"$nulls":3},"",null,null,""]
[{"$nulls":3},"",null,null,""]

{"sheet":"3. TN Feedback in Zahlen","index":3,"n_rows":511,"n_cols":7,"rows_kept":511,"merged":[[8,0,9,0],[8,1,9,1],[8,2,9,2]]}
[]
[null,"Feedback der an den Maßnahmen teilnehmenden Personen in Zahlen"]
[]
[null,"Organisation:",null,{"$f":"'1. Überblick'!D20","v":0}]
[null,"Projekttitel:",null,{"$f":"'1. Überblick'!D21","v":0}]
[null,"Projektbericht: ",null,{"$f":"'1. Überblick'!D22","v":"bitte wählen"}]
[]
["Maßnahme ","Durchführung einer Befragung","Anzahl der befragten Personen","Anzahl der Antworten pro Frage","Fragewortlaut","Antwortkategorien der Frage","Antworten der befragten Personen"]
["Workshop 1 (fiktives Beispiel)","ja, wir haben unsere Teilnehmenden dazu befragt",15,15,"Wie zufrieden waren Sie mit unserem Workshop ingesamt?","1 \"sehr zufrieden\", 2 \"zufrieden\", 3 \"wenig zufreiden\", 4 \"gar nicht zufrieden\"","13 x \"sehr zufrieden\", 2 x \"zufrieden\""]
[{"$nulls":3},14,"Wie sehr stimmen Sie der folgenden Aussage zu: Ich werde den Workshop weiterempfehlen?","1 \"stimme voll zu\", 2 \"stimme eher zu\", 3 \"stimme wenig zu\", 4 \"stimme gar nicht zu\"","12 x \"stimme voll zu\", 1 x \"stimme eher zu\", 1 x \"stimme gar nicht zu\""]
["Vortrag 1 (fiktives Beispiel)","ja, wir haben unsere Teilnehmenden dazu befragt",100,100,"Wie sehr stimmen Sie der folgenden Aussage zu: Ich habe etwas über Hürden beim Ergreifen von MINT-Berufen gelernt?","1 \"stimme voll zu\", 2 \"stimme eher zu\", 3 \"stimme wenig zu\", 4 \"stimme gar nicht zu\"","70 x \"stimme voll zu\", 18 x \"stimme eher zu\" 7 x \"stimme wenig zu\", 5 x \"stimme gar nicht zu\""]
[null,"bitte wählen",{"$f":"IF($B12=\"nein, keine Befragung dazu durchgeführt\", \"keine Befragung durchgeführt\", \"\")","v":""},{"$f":"IF($B12=\"nein, keine Befragung dazu durchgeführt\", \"keine Befragung durchgeführt\", \"\")","v":""},"","",""]
[null,"bitte wählen","","","","",""]
[null,"bitte wählen",{"$f":"IF($B14=\"nein, keine Befragung dazu durchgeführt\", \"keine Befragung durchgeführt\", \"\")","v":""},"","","",""]
[null,"bitte wählen",{"$f":"IF($B15=\"nein, keine Befragung dazu durchgeführt\", \"keine Befragung durchgeführt\", \"\")","v":""},"","","",""]
[null,"bitte wählen","","","","",""]
[null,"bitte wählen","","","","",""]
[null,"bitte wählen","","","","",""]
[null,"bitte wählen","","","","",""]
[null,"bitte wählen","","","","",""]
[null,"bitte wählen","","","","",""]
[null,"bitte wählen","","","","",""]
[null,"bitte wählen","","","","",""]
[null,"bitte wählen","","","","",""]
[null,"bitte wählen","","","","",""]
[null,"bitte wählen","","","","",""]
[null,"bitte wählen","","","","",""]
[null,"bitte wählen","","","","",""]
[null,"bitte wählen","","","","",""]
[null,"bitte wählen","","","","",""]
[null,"bitte wählen","","","","",""]
[null,"bitte wählen","","","","",""]
[null,"bitte wählen","","","","",""]
[null,"bitte wählen","","","","",""]
[null,"bitte wählen","","","","",""]
[null,"bitte wählen","","","","",""]
[null,"bitte wählen","","","","",""]
[null,"bitte wählen","","","","",""]
[null,"bitte wählen","","","","",""]
[null,"bitte wählen","","","","",""]
[null,"bitte wählen","","","","",""]
[null,"bitte wählen","","","","",""]
[null,"bitte wählen","","","","",""]
[null,"bitte wählen","","","","",""]
[null,"bitte wählen","","","","",""]
[null,"bitte wählen","","","","",""]
[null,"bitte wählen","","","","",""]
[null,"bitte wählen","","","","",""]
[null,"bitte wählen","","","","",""]
[null,"bitte wählen","","","","",""]
[null,"bitte wählen","","","","",""]
[null,"bitte wählen","","","","",""]
[null,"bitte wählen","","","","",""]
[null,"bitte wählen","","","","",""]
[null,"bitte wählen","","","","",""]
[null,"bitte wählen","","","","",""]
[null,"bitte wählen","","","","",""]
[null,"bitte wählen","","","","",""]
[null,"bitte wählen","","","","",""]
[null,"bitte wählen","","","","",""]
[null,"bitte wählen","","","","",""]
[null,"bitte wählen","","","","",""]
[null,"bitte wählen","","","","",""]
[null,"bitte wählen","","","","",""]
[null,"bitte wählen","","","","",""]
[null,"bitte wählen","","","","",""]
[null,"bitte wählen","","","","",""]
[null,"bitte wählen","","","","",""]
[null,"bitte wählen","","","","",""]
[null,"bitte wählen","","","","",""]
[null,"bitte wählen","","","","",""]
[null,"bitte wählen","","","","",""]
[null,"bitte wählen","","","","",""]
[null,"bitte wählen","","","","",""]
[null,"bitte wählen","","","","",""]
[null,"bitte wählen","","","","",""]
[null,"bitte wählen","",{"$f":"IF($B77=\"nein, keine Befragung dazu durchgeführt\", \"keine Befragung durchgeführt\", \"\")","v":""},"","",""]
[null,"bitte wählen",{"$f":"IF($B78=\"nein, keine Befragung dazu durchgeführt\", \"keine Befragung durchgeführt\", \"\")","v":""},"","","",""]
[null,"bitte wählen","","","","",""]
[null,"bitte wählen","","","","",""]
[null,"bitte wählen","","","","",""]
[null,"bitte wählen","","","","",""]
[null,"bitte wählen","","","","",""]
[null,"bitte wählen","","","","",""]
[null,"bitte wählen","","","","",""]
[null,"bitte wählen","","","","",""]
[null,"bitte wählen","","","","",""]
[null,"bitte wählen","","","","",""]
[null,"bitte wählen","","","","",""]
[null,"bitte wählen","","","","",""]
[null,"bitte wählen","","","","",""]
[null,"bitte wählen","","","","",""]
[null,"bitte wählen","","","","",""]
[null,"bitte wählen","","","","",""]
[null,"bitte wählen","","","","",""]
[null,"bitte wählen","","","","",""]
[null,"bitte wählen","","","","",""]
[null,"bitte wählen","","","","",""]
[null,"bitte wählen","","","","",""]
[null,"bitte wählen","","","","",""]
[null,"bitte wählen","","","","",""]
[null,"bitte wählen","","","","",""]
[null,"bitte wählen","","","","",""]
[null,"bitte wählen","","","","",""]
[null,"bitte wählen","","","","",""]
[null,"bitte wählen","","","","",""]
[null,"bitte wählen","","","","",""]
[null,"bitte wählen","","","","",""]
[null,"bitte wählen","","","","",""]
[null,"bitte wählen","","","","",""]
[null,"bitte wählen","","","","",""]
[null,"bitte wählen","","","","",""]
[null,"bitte wählen","","","","",""]
[null,"bitte wählen","","","","",""]
[null,"bitte wählen","","","","",""]
[null,"bitte wählen","","","","",""]
[null,"bitte wählen","","","","",""]
[null,"bitte wählen","","","","",""]
[null,"bitte wählen","","","","",""]
[null,"bitte wählen","","","","",""]
[null,"bitte wählen","","","","",""]
[null,"bitte wählen","","","","",""]
[null,"bitte wählen","","","","",""]
[null,"bitte wählen","","","","",""]
[null,"bitte wählen","","","","",""]
[null,"bitte wählen","","","","",""]
[null,"bitte wählen","","","","",""]
[null,"bitte wählen","","","","",""]
[null,"bitte wählen","","","","",""]
[null,"bitte wählen","","","","",""]
[null,"bitte wählen","","","","",""]
[null,"bitte wählen","","","","",""]
[null,"bitte wählen","","","","",""]
[null,"bitte wählen","","","","",""]
[null,"bitte wählen","","","","",""]
[null,"bitte wählen","","","","",""]
[null,"bitte wählen","","","","",""]
[null,"bitte wählen","","","","",""]
[null,"bitte wählen","","","","",""]
[null,"bitte wählen","","","","",{"$f":"IF($B140=\"nein, keine Befragung dazu durchgeführt\", \"keine Befragung durchgeführt\", \"\")","v":""}]
[null,"bitte wählen","","","","",""]
[null,"bitte wählen",{"$f":"IF($B142=\"nein, keine Befragung dazu durchgeführt\", \"keine Befragung durchgeführt\", \"\")","v":""},"","","",""]
[null,"bitte wählen","","","","",""]
[null,"bitte wählen","","","","",""]
[null,"bitte wählen","","","","",""]
[null,"bitte wählen","","","","",""]
[null,"bitte wählen","","","","",""]
[null,"bitte wählen","","","","",""]
[null,"bitte wählen","","","","",""]
[null,"bitte wählen","","","","",""]
[null,"bitte wählen","","","","",""]
[null,"bitte wählen","","","","",""]
[null,"bitte wählen","","","","",""]
[null,"bitte wählen","","","","",""]
[null,"bitte wählen","","","","",""]
[null,"bitte wählen","","","","",""]
[null,"bitte wählen","","","","",""]
[null,"bitte wählen","","","","",""]
[null,"bitte wählen","","","","",""]
[null,"bitte wählen","","","","",""]
[null,"bitte wählen","","","","",""]
[null,"bitte wählen","","","","",""]
[null,"bitte wählen","","","","",""]
[null,"bitte wählen","","","","",""]
[null,"bitte wählen","","","","",""]
[null,"bitte wählen","","","","",""]
[null,"bitte wählen","","","","",""]
[null,"bitte wählen","","","","",""]
[null,"bitte wählen","","","","",""]
[null,"bitte wählen","","","","",""]
[null,"bitte wählen","","","","",""]
[null,"bitte wählen","","","","",""]
[null,"bitte wählen","","","","",""]
[null,"bitte wählen","","","","",""]
[null,"bitte wählen","","","","",""]
[null,"bitte wählen","","","","",""]
[null,"bitte wählen","","","","",""]
[null,"bitte wählen","","","","",""]
[null,"bitte wählen","","","","",""]
[null,"bitte wählen","","","","",""]
[null,"bitte wählen","","","","",""]
[null,"bitte wählen","","","","",""]
[null,"bitte wählen","","","","",""]
[null,"bitte wählen","","","","",""]
[null,"bitte wählen","","","","",""]
[null,"bitte wählen","","","","",""]
[null,"bitte wählen","","","","",""]
[null,"bitte wählen","","","","",""]
[null,"bitte wählen","","","","",""]
[null,"bitte wählen","","","","",""]
[null,"bitte wählen","","","","",""]
[null,"bitte wählen","","","","",""]
[null,"bitte wählen","","","","",""]
[null,"bitte wählen","","","","",""]
[null,"bitte wählen","","","","",""]
[null,"bitte wählen","","","","",""]
[null,"bitte wählen","","","","",""]
[null,"bitte wählen","","","","",""]
[null,"bitte wählen","","","","",""]
[null,"bitte wählen","","","","",""]
[null,"bitte wählen","","","","",""]
[null,"bitte wählen","","","","",""]
[null,"bitte wählen","","","","",""]
[null,"bitte wählen","","","","",""]
[null,"bitte wählen","","","","",""]
[null,"bitte wählen",{"$f":"IF($B206=\"nein, keine Befragung dazu durchgeführt\", \"keine Befragung durchgeführt\", \"\")","v":""},"","","",""]
[null,"bitte wählen","","","","",""]
[null,"bitte wählen","","","","",""]
[null,"bitte wählen","","","","",""]
[null,"bitte wählen","","","","",""]
[null,"bitte wählen","","","","",""]
[null,"bitte wählen","","","","",""]
[null,"bitte wählen","","","","",""]
[null,"bitte wählen","","","","",""]
[null,"bitte wählen","","","","",""]
[null,"bitte wählen","","","","",""]
[null,"bitte wählen","","","","",""]
[null,"bitte wählen","","","","",""]
[null,"bitte wählen","","","","",""]
[null,"bitte wählen","","","","",""]
[null,"bitte wählen","","","","",""]
[null,"bitte wählen","","","","",""]
[null,"bitte wählen","","","","",""]
[null,"bitte wählen","","","","",""]
[null,"bitte wählen","","","","",""]
[null,"bitte wählen","","","","",""]
[null,"bitte wählen","","","","",""]
[null,"bitte wählen","","","","",""]
[null,"bitte wählen","","","","",""]
[null,"bitte wählen","","","","",""]
[null,"bitte wählen","","","","",""]
[null,"bitte wählen","","","","",""]
[null,"bitte wählen","","","","",""]
[null,"bitte wählen","","","","",""]
[null,"bitte wählen","","","","",""]
[null,"bitte wählen","","","","",""]
[null,"bitte wählen","","","","",""]
[null,"bitte wählen","","","","",""]
[null,"bitte wählen","","","","",""]
[null,"bitte wählen","","","","",""]
[null,"bitte wählen","","","","",""]
[null,"bitte wählen","","","","",""]
[null,"bitte wählen","","","","",""]
[null,"bitte wählen","","","","",""]
[null,"bitte wählen","","","","",""]
[null,"bitte wählen","","","","",""]
[null,"bitte wählen","","","","",""]
[null,"bitte wählen","","","","",""]
[null,"bitte wählen","","","","",""]
[null,"bitte wählen","","","","",""]
[null,"bitte wählen","","","","",""]
[null,"bitte wählen","","","","",""]
[null,"bitte wählen","","","","",""]
[null,"bitte wählen","","","","",""]
[null,"bitte wählen","","","","",""]
[null,"bitte wählen","","","","",""]
[null,"bitte wählen",{"$f":"IF($B257=\"nein, keine Befragung dazu durchgeführt\", \"keine Befragung durchgeführt\", \"\")","v":""},"","","",""]
[null,"bitte wählen","","","","",""]
[null,"bitte wählen","","","","",""]
[null,"bitte wählen","","","","",""]
[null,"bitte wählen","","","","",""]
[null,"bitte wählen","","","","",""]
[null,"bitte wählen","","","","",""]
[null,"bitte wählen","","","","",""]
[null,"bitte wählen","","","","",""]
[null,"bitte wählen","","","","",""]
[null,"bitte wählen","","","","",""]
[null,"bitte wählen","","","","",""]
[null,"bitte wählen","","","","",""]
[null,"bitte wählen","","","","",""]
[null,"bitte wählen","","","","",""]
[null,"bitte wählen","","","","",""]
[null,"bitte wählen","","","","",""]
[null,"bitte wählen","","","","",""]
[null,"bitte wählen","","","","",""]
[null,"bitte wählen","","","","",""]
[null,"bitte wählen","","","","",""]
[null,"bitte wählen","","","","",""]
[null,"bitte wählen","","","","",""]
[null,"bitte wählen","","","","",""]
[null,"bitte wählen","","","","",""]
[null,"bitte wählen","","","","",""]
[null,"bitte wählen","","","","",""]
[null,"bitte wählen","","","","",""]
[null,"bitte wählen","","","","",""]
[null,"bitte wählen","","","","",""]
[null,"bitte wählen","","","","",""]
[null,"bitte wählen","","","","",""]
[null,"bitte wählen","","","","",""]
[null,"bitte wählen","","","","",""]
[null,"bitte wählen","","","","",""]
[null,"bitte wählen","","","","",""]
[null,"bitte wählen","","","","",""]
[null,"bitte wählen","","","","",""]
[null,"bitte wählen","","","","",""]
[null,"bitte wählen","","","","",""]
[null,"bitte wählen","","","","",""]
[null,"bitte wählen","","","","",""]
[null,"bitte wählen","","","","",""]
[null,"bitte wählen","","","","",""]
[null,"bitte wählen","","","","",""]
[null,"bitte wählen","","","","",""]
[null,"bitte wählen","","","","",""]
[null,"bitte wählen","","","","",""]
[null,"bitte wählen","","","","",""]
[null,"bitte wählen","","","","",""]
[null,"bitte wählen","","","","",""]
[null,"bitte wählen",{"$f":"IF($B308=\"nein, keine Befragung dazu durchgeführt\", \"keine Befragung durchgeführt\", \"\")","v":""},"","","",""]
[null,"bitte wählen","","","","",""]
[null,"bitte wählen","","","","",""]
[null,"bitte wählen","","","","",""]
[null,"bitte wählen","","","","",""]
[null,"bitte wählen","","","","",""]
[null,"bitte wählen","","","","",""]
[null,"bitte wählen","","","","",""]
[null,"bitte wählen","","","","",""]
[null,"bitte wählen","","","","",""]
[null,"bitte wählen","","","","",""]
[null,"bitte wählen","","","","",""]
[null,"bitte wählen","","","","",""]
[null,"bitte wählen","","","","",""]
[null,"bitte wählen","","","","",""]
[null,"bitte wählen","","","","",""]
[null,"bitte wählen","","","","",""]
[null,"bitte wählen","","","","",""]
[null,"bitte wählen","","","","",""]
[null,"bitte wählen","","","","",""]
[null,"bitte wählen","","","","",""]
[null,"bitte wählen","","","","",""]
[null,"bitte wählen","","","","",""]
[null,"bitte wählen","","","","",""]
[null,"bitte wählen","","","","",""]
[null,"bitte wählen","","","","",""]
[null,"bitte wählen","","","","",""]
[null,"bitte wählen","","","","",""]
[null,"bitte wählen","","","","",""]
[null,"bitte wählen","","","","",""]
[null,"bitte wählen","","","","",""]
[null,"bitte wählen","","","","",""]
[null,"bitte wählen","","","","",""]
[null,"bitte wählen","","","","",""]
[null,"bitte wählen","","","","",""]
[null,"bitte wählen","","","","",""]
[null,"bitte wählen","","","","",""]
[null,"bitte wählen","","","","",""]
[null,"bitte wählen","","","","",""]
[null,"bitte wählen","","","","",""]
[null,"bitte wählen","","","","",""]
[null,"bitte wählen","","","","",""]
[null,"bitte wählen","","","","",""]
[null,"bitte wählen","","","","",""]
[null,"bitte wählen","","","","",""]
[null,"bitte wählen","","","","",""]
[null,"bitte wählen","","","","",""]
[null,"bitte wählen","","","","",""]
[null,"bitte wählen","","","","",""]
[null,"bitte wählen","","","","",""]
[null,"bitte wählen","","","","",""]
[null,"bitte wählen",{"$f":"IF($B359=\"nein, keine Befragung dazu durchgeführt\", \"keine Befragung durchgeführt\", \"\")","v":""},"","","",""]
[null,"bitte wählen","","","","",""]
[null,"bitte wählen","","","","",""]
[null,"bitte wählen","","","","",""]
[null,"bitte wählen","","","","",""]
[null,"bitte wählen","","","","",""]
[null,"bitte wählen","","","","",""]
[null,"bitte wählen","","","","",""]
[null,"bitte wählen","","","","",""]
[null,"bitte wählen","","","","",""]
[null,"bitte wählen","","","","",""]
[null,"bitte wählen","","","","",""]
[null,"bitte wählen","","","","",""]
[null,"bitte wählen","","","","",""]
[null,"bitte wählen","","","","",""]
[null,"bitte wählen","","","","",""]
[null,"bitte wählen","","","","",""]
[null,"bitte wählen","","","","",""]
[null,"bitte wählen","","","","",""]
[null,"bitte wählen","","","","",""]
[null,"bitte wählen","","","","",""]
[null,"bitte wählen","","","","",""]
[null,"bitte wählen","","","","",""]
[null,"bitte wählen","","","","",""]
[null,"bitte wählen","","","","",""]
[null,"bitte wählen","","","","",""]
[null,"bitte wählen","","","","",""]
[null,"bitte wählen","","","","",""]
[null,"bitte wählen","","","","",""]
[null,"bitte wählen","","","","",""]
[null,"bitte wählen","","","","",""]
[null,"bitte wählen","","","","",""]
[null,"bitte wählen",{"$f":"IF($B391=\"nein, keine Befragung dazu durchgeführt\", \"keine Befragung durchgeführt\", \"\")","v":""},"","","",""]
[null,"bitte wählen","","","","",""]
[null,"bitte wählen","","","","",""]
[null,"bitte wählen","","","","",""]
[null,"bitte wählen","","","","",""]
[null,"bitte wählen","","","","",""]
[null,"bitte wählen","","","","",""]
[null,"bitte wählen","","","","",""]
[null,"bitte wählen","","","","",""]
[null,"bitte wählen","","","","",""]
[null,"bitte wählen","","","","",""]
[null,"bitte wählen","","","","",""]
[null,"bitte wählen","","","","",""]
[null,"bitte wählen","","","","",""]
[null,"bitte wählen","","","","",""]
[null,"bitte wählen","","","","",""]
[null,"bitte wählen","","","","",""]
[null,"bitte wählen","","","","",""]
[null,"bitte wählen","","","","",""]
[null,"bitte wählen","","","","",""]
[null,"bitte wählen","","","","",""]
[null,"bitte wählen","","","","",""]
[null,"bitte wählen","","","","",""]
[null,"bitte wählen","","","","",""]
[null,"bitte wählen","","","","",""]
[null,"bitte wählen","","","","",""]
[null,"bitte wählen","","","","",""]
[null,"bitte wählen","","","","",""]
[null,"bitte wählen","","","","",""]
[null,"bitte wählen","","","","",""]
[null,"bitte wählen","","","","",""]
[null,"bitte wählen","","","","",""]
[null,"bitte wählen",{"$f":"IF($B423=\"nein, keine Befragung dazu durchgeführt\", \"keine Befragung durchgeführt\", \"\")","v":""},"","","",""]
[null,"bitte wählen","","","","",""]
[null,"bitte wählen","","","","",""]
[null,"bitte wählen","","","","",""]
[null,"bitte wählen","","","","",""]
[null,"bitte wählen","","","","",""]
[null,"bitte wählen","","","","",""]
[null,"bitte wählen","","","","",""]
[null,"bitte wählen","","","","",""]
[null,"bitte wählen","","","","",""]
[null,"bitte wählen","","","","",""]
[null,"bitte wählen","","","","",""]
[null,"bitte wählen","","","","",""]
[null,"bitte wählen","","","","",""]
[null,"bitte wählen","","","","",""]
[null,"bitte wählen","","","","",""]
[null,"bitte wählen","","","","",""]
[null,"bitte wählen","","","","",""]
[null,"bitte wählen","","","","",""]
[null,"bitte wählen","","","","",""]
[null,"bitte wählen","","","","",""]
[null,"bitte wählen","","","","",""]
[null,"bitte wählen","","","","",""]
[null,"bitte wählen","","","","",""]
[null,"bitte wählen","","","","",""]
[null,"bitte wählen","","","","",""]
[null,"bitte wählen","","","","",""]
[null,"bitte wählen","","","","",""]
[null,"bitte wählen","","","","",""]
[null,"bitte wählen","","","","",""]
[null,"bitte wählen","","","","",""]
[null,"bitte wählen","","","","",""]
[null,"bitte wählen",{"$f":"IF($B455=\"nein, keine Befragung dazu durchgeführt\", \"keine Befragung durchgeführt\", \"\")","v":""},"","","",""]
[null,"bitte wählen","","","","",""]
[null,"bitte wählen","","","","",""]
[null,"bitte wählen","","","","",""]
[null,"bitte wählen","","","","",""]
[null,"bitte wählen","","","","",""]
[null,"bitte wählen","","","","",""]
[null,"bitte wählen","","","","",""]
[null,"bitte wählen","","","","",""]
[null,"bitte wählen","","","","",""]
[null,"bitte wählen","","","","",""]
[null,"bitte wählen","","","","",""]
[null,"bitte wählen","","","","",""]
[null,"bitte wählen","","","","",""]
[null,"bitte wählen","","","","",""]
[null,"bitte wählen","","","","",""]
[null,"bitte wählen","","","","",""]
[null,"bitte wählen","","","","",""]
[null,"bitte wählen","","","","",""]
[null,"bitte wählen","","","","",""]
[null,"bitte wählen","","","","",""]
[null,"bitte wählen","","","","",""]
[null,"bitte wählen","","","","",""]
[null,"bitte wählen","","","","",""]
[null,"bitte wählen","","","","",""]
[null,"bitte wählen","","","","",""]
[null,"bitte wählen","","","","",""]
[null,"bitte wählen","","","","",""]
[null,"bitte wählen","","","","",""]
[null,"bitte wählen","","","","",""]
[null,"bitte wählen","","","","",""]
[null,"bitte wählen","","","","",""]
[null,"bitte wählen",{"$f":"IF($B487=\"nein, keine Befragung dazu durchgeführt\", \"keine Befragung durchgeführt\", \"\")","v":""},"","","",""]
[null,"bitte wählen","","","","",""]
[null,"bitte wählen","","","","",""]
[null,"bitte wählen","","","","",""]
[null,"bitte wählen","","","","",""]
[null,"bitte wählen","","","","",""]
[null,"bitte wählen","","","","",""]
[null,"bitte wählen","","","","",""]
[null,"bitte wählen","","","","",""]
[null,"bitte wählen","","","","",""]
[null,"bitte wählen","","","","",""]
[null,"bitte wählen","","","","",""]
[null,"bitte wählen","","","","",""]
[null,"bitte wählen","","","","",""]
[null,"bitte wählen","","","","",""]
[null,"bitte wählen","","","","",""]
[null,"bitte wählen","","","","",""]
[null,"bitte wählen","","","","",""]
[null,"bitte wählen","","","","",""]
[null,"bitte wählen","","","","",""]
[null,"bitte wählen","","","","",""]
[null,"bitte wählen","","","","",""]
[null,"bitte wählen","","","","",""]
[null,"bitte wählen","","","","",""]
[null,"bitte wählen","","","","",""]

{"sheet":"4. Grafische Darstellung","index":4,"n_rows":16,"n_cols":14,"rows_kept":16}
[]
[null,"Grafische Darstellung "]
[]
[null,"Organisation:",{"$f":"'1. Überblick'!D20","v":0}]
[null,"Projekttitel:",{"$f":"'1. Überblick'!D21","v":0}]
[null,"Projektbericht:",{"$f":"'1. Überblick'!D22","v":"bitte wählen"}]
[]
[]
[]
[null,"Sollte eine grafische Darstellung gewählt werden, bitte auf Folgendes zu achten: "]
[null,"- Einheitlichkeit über Grafiken hinweg",{"$nulls":11},"so kann eine optimale Grafik aussehen"]
[null,"- Information zur Größe der Stichprobe, auf welcher die Grafik beruht"]
[null,"      - bei Prä/Post-Befragungen gleiche Größe der Stichprobe für die Auswertung in der Grafik, d.h. nur die Anzahl voll ausgefüllter Fragebögen werten"]
[null,"- Legende für die verschiedenen Ausprägungen / Antwort-Kategorien pro Grafik"]
[null,"- Beschriftung der Achsen (mindestens: Angabe über Minimum und Maximum der Skala)"]
[null,"- Bei Balkendiagrammen: Wert für die Höhe des Balkens (% pro Antwort-Kategorie)"]

{"sheet":"5. Anekdotensammlung","index":5,"n_rows":509,"n_cols":6,"rows_kept":509}
[]
[null,"Sammlung von Anekdoten / Direktzitaten / Rückmeldungen der Teilnehmenden "]
[]
[null,"Organisation:",{"$f":"'1. Überblick'!D20","v":0}]
[null,"Projekttitel:",{"$f":"'1. Überblick'!D21","v":0}]
[null,"Projektbericht:",{"$f":"'1. Überblick'!D22","v":"bitte wählen"}]
[]
["TN-Nr.","Gender","Art der Maßnahme","Anekdote / Direktzitat / Rückmeldung ","Erlaubnis zur öffentlichen Nutzung","Anmerkungen"]
[1,"männlich","Seminar zum Thema \"Mental Load\"","\"Danke für die Organisation dieses Seminars! Ich weiß jetzt besser über dieses wichtige Thema Bescheid und wir werden versuchen, den Mental Load in unserer Partnerschaft gerechter aufzuteilen!\"","ja","fiktives Beispiel"]
[null,"bitte wählen",null,null,"bitte wählen"]
[null,"bitte wählen",null,null,"bitte wählen"]
[null,"bitte wählen",null,null,"bitte wählen"]
[null,"bitte wählen",null,null,"bitte wählen"]
[null,"bitte wählen",null,null,"bitte wählen"]
[null,"bitte wählen",null,null,"bitte wählen"]
[null,"bitte wählen",null,null,"bitte wählen"]
[null,"bitte wählen",null,null,"bitte wählen"]
[null,"bitte wählen",null,null,"bitte wählen"]
[null,"bitte wählen",null,null,"bitte wählen"]
[null,"bitte wählen",null,null,"bitte wählen"]
[null,"bitte wählen",null,null,"bitte wählen"]
[null,"bitte wählen",null,null,"bitte wählen"]
[null,"bitte wählen",null,null,"bitte wählen"]
[null,"bitte wählen",null,null,"bitte wählen"]
[null,"bitte wählen",null,null,"bitte wählen"]
[null,"bitte wählen",null,null,"bitte wählen"]
[null,"bitte wählen",null,null,"bitte wählen"]
[null,"bitte wählen",null,null,"bitte wählen"]
[null,"bitte wählen",null,null,"bitte wählen"]
[null,"bitte wählen",null,null,"bitte wählen"]
[null,"bitte wählen",null,null,"bitte wählen"]
[null,"bitte wählen",null,null,"bitte wählen"]
[null,"bitte wählen",null,null,"bitte wählen"]
[null,"bitte wählen",null,null,"bitte wählen"]
[null,"bitte wählen",null,null,"bitte wählen"]
[null,"bitte wählen",null,null,"bitte wählen"]
[null,"bitte wählen",null,null,"bitte wählen"]
[null,"bitte wählen",null,null,"bitte wählen"]
[null,"bitte wählen",null,null,"bitte wählen"]
[null,"bitte wählen",null,null,"bitte wählen"]
[null,"bitte wählen",null,null,"bitte wählen"]
[null,"bitte wählen",null,null,"bitte wählen"]
[null,"bitte wählen",null,null,"bitte wählen"]
[null,"bitte wählen",null,null,"bitte wählen"]
[null,"bitte wählen",null,null,"bitte wählen"]
[null,"bitte wählen",null,null,"bitte wählen"]
[null,"bitte wählen",null,null,"bitte wählen"]
[null,"bitte wählen",null,null,"bitte wählen"]
[null,"bitte wählen",null,null,"bitte wählen"]
[null,"bitte wählen",null,null,"bitte wählen"]
[null,"bitte wählen",null,null,"bitte wählen"]
[null,"bitte wählen",null,null,"bitte wählen"]
[null,"bitte wählen",null,null,"bitte wählen"]
[null,"bitte wählen",null,null,"bitte wählen"]
[null,"bitte wählen",null,null,"bitte wählen"]
[null,"bitte wählen",null,null,"bitte wählen"]
[null,"bitte wählen",null,null,"bitte wählen"]
[null,"bitte wählen",null,null,"bitte wählen"]
[null,"bitte wählen",null,null,"bitte wählen"]
[null,"bitte wählen",null,null,"bitte wählen"]
[null,"bitte wählen",null,null,"bitte wählen"]
[null,"bitte wählen",null,null,"bitte wählen"]
[null,"bitte wählen",null,null,"bitte wählen"]
[null,"bitte wählen",null,null,"bitte wählen"]
[null,"bitte wählen",null,null,"bitte wählen"]
[null,"bitte wählen",null,null,"bitte wählen"]
[null,"bitte wählen",null,null,"bitte wählen"]
[null,"bitte wählen",null,null,"bitte wählen"]
[null,"bitte wählen",null,null,"bitte wählen"]
[null,"bitte wählen",null,null,"bitte wählen"]
[null,"bitte wählen",null,null,"bitte wählen"]
[null,"bitte wählen",null,null,"bitte wählen"]
[null,"bitte wählen",null,null,"bitte wählen"]
[null,"bitte wählen",null,null,"bitte wählen"]
[null,"bitte wählen",null,null,"bitte wählen"]
[null,"bitte wählen",null,null,"bitte wählen"]
[null,"bitte wählen",null,null,"bitte wählen"]
[null,"bitte wählen",null,null,"bitte wählen"]
[null,"bitte wählen",null,null,"bitte wählen"]
[null,"bitte wählen",null,null,"bitte wählen"]
[null,"bitte wählen",null,null,"bitte wählen"]
[null,"bitte wählen",null,null,"bitte wählen"]
[null,"bitte wählen",null,null,"bitte wählen"]
[null,"bitte wählen",null,null,"bitte wählen"]
[null,"bitte wählen",null,null,"bitte wählen"]
[null,"bitte wählen",null,null,"bitte wählen"]
[null,"bitte wählen",null,null,"bitte wählen"]
[null,"bitte wählen",null,null,"bitte wählen"]
[null,"bitte wählen",null,null,"bitte wählen"]
[null,"bitte wählen",null,null,"bitte wählen"]
[null,"bitte wählen",null,null,"bitte wählen"]
[null,"bitte wählen",null,null,"bitte wählen"]
[null,"bitte wählen",null,null,"bitte wählen"]
[null,"bitte wählen",null,null,"bitte wählen"]
[null,"bitte wählen",null,null,"bitte wählen"]
[null,"bitte wählen",null,null,"bitte wählen"]
[null,"bitte wählen",null,null,"bitte wählen"]
[null,"bitte wählen",null,null,"bitte wählen"]
[null,"bitte wählen",null,null,"bitte wählen"]
[null,"bitte wählen",null,null,"bitte wählen"]
[null,"bitte wählen",null,null,"bitte wählen"]
[null,"bitte wählen",null,null,"bitte wählen"]
[null,"bitte wählen",null,null,"bitte wählen"]
[null,"bitte wählen",null,null,"bitte wählen"]
[null,"bitte wählen",null,null,"bitte wählen"]
[null,"bitte wählen",null,null,"bitte wählen"]
[null,"bitte wählen",null,null,"bitte wählen"]
[null,"bitte wählen",null,null,"bitte wählen"]
[null,"bitte wählen",null,null,"bitte wählen"]
[null,"bitte wählen",null,null,"bitte wählen"]
[null,"bitte wählen",null,null,"bitte wählen"]
[null,"bitte wählen",null,null,"bitte wählen"]
[null,"bitte wählen",null,null,"bitte wählen"]
[null,"bitte wählen",null,null,"bitte wählen"]
[null,"bitte wählen",null,null,"bitte wählen"]
[null,"bitte wählen",null,null,"bitte wählen"]
[null,"bitte wählen",null,null,"bitte wählen"]
[null,"bitte wählen",null,null,"bitte wählen"]
[null,"bitte wählen",null,null,"bitte wählen"]
[null,"bitte wählen",null,null,"bitte wählen"]
[null,"bitte wählen",null,null,"bitte wählen"]
[null,"bitte wählen",null,null,"bitte wählen"]
[null,"bitte wählen",null,null,"bitte wählen"]
[null,"bitte wählen",null,null,"bitte wählen"]
[null,"bitte wählen",null,null,"bitte wählen"]
[null,"bitte wählen",null,null,"bitte wählen"]
[null,"bitte wählen",null,null,"bitte wählen"]
[null,"bitte wählen",null,null,"bitte wählen"]
[null,"bitte wählen",null,null,"bitte wählen"]
[null,"bitte wählen",null,null,"bitte wählen"]
[null,"bitte wählen",null,null,"bitte wählen"]
[null,"bitte wählen",null,null,"bitte wählen"]
[null,"bitte wählen",null,null,"bitte wählen"]
[null,"bitte wählen",null,null,"bitte wählen"]
[null,"bitte wählen",null,null,"bitte wählen"]
[null,"bitte wählen",null,null,"bitte wählen"]
[null,"bitte wählen",null,null,"bitte wählen"]
[null,"bitte wählen",null,null,"bitte wählen"]
[null,"bitte wählen",null,null,"bitte wählen"]
[null,"bitte wählen",null,null,"bitte wählen"]
[null,"bitte wählen",null,null,"bitte wählen"]
[null,"bitte wählen",null,null,"bitte wählen"]
[null,"bitte wählen",null,null,"bitte wählen"]
[null,"bitte wählen",null,null,"bitte wählen"]
[null,"bitte wählen",null,null,"bitte wählen"]
[null,"bitte wählen",null,null,"bitte wählen"]
[null,"bitte wählen",null,null,"bitte wählen"]
[null,"bitte wählen",null,null,"bitte wählen"]
[null,"bitte wählen",null,null,"bitte wählen"]
[null,"bitte wählen",null,null,"bitte wählen"]
[null,"bitte wählen",null,null,"bitte wählen"]
[null,"bitte wählen",null,null,"bitte wählen"]
[null,"bitte wählen",null,null,"bitte wählen"]
[null,"bitte wählen",null,null,"bitte wählen"]
[null,"bitte wählen",null,null,"bitte wählen"]
[null,"bitte wählen",null,null,"bitte wählen"]
[null,"bitte wählen",null,null,"bitte wählen"]
[null,"bitte wählen",null,null,"bitte wählen"]
[null,"bitte wählen",null,null,"bitte wählen"]
[null,"bitte wählen",null,null,"bitte wählen"]
[null,"bitte wählen",null,null,"bitte wählen"]
[null,"bitte wählen",null,null,"bitte wählen"]
[null,"bitte wählen",null,null,"bitte wählen"]
[null,"bitte wählen",null,null,"bitte wählen"]
[null,"bitte wählen",null,null,"bitte wählen"]
[null,"bitte wählen",null,null,"bitte wählen"]
[null,"bitte wählen",null,null,"bitte wählen"]
[null,"bitte wählen",null,null,"bitte wählen"]
[null,"bitte wählen",null,null,"bitte wählen"]
[null,"bitte wählen",null,null,"bitte wählen"]
[null,"bitte wählen",null,null,"bitte wählen"]
[null,"bitte wählen",null,null,"bitte wählen"]
[null,"bitte wählen",null,null,"bitte wählen"]
[null,"bitte wählen",null,null,"bitte wählen"]
[null,"bitte wählen",null,null,"bitte wählen"]
[null,"bitte wählen",null,null,"bitte wählen"]
[null,"bitte wählen",null,null,"bitte wählen"]
[null,"bitte wählen",null,null,"bitte wählen"]
[null,"bitte wählen",null,null,"bitte wählen"]
[null,"bitte wählen",null,null,"bitte wählen"]
[null,"bitte wählen",null,null,"bitte wählen"]
[null,"bitte wählen",null,null,"bitte wählen"]
[null,"bitte wählen",null,null,"bitte wählen"]
[null,"bitte wählen",null,null,"bitte wählen"]
[null,"bitte wählen",null,null,"bitte wählen"]
[null,"bitte wählen",null,null,"bitte wählen"]
[null,"bitte wählen",null,null,"bitte wählen"]
[null,"bitte wählen",null,null,"bitte wählen"]
[null,"bitte wählen",null,null,"bitte wählen"]
[null,"bitte wählen",null,null,"bitte wählen"]
[null,"bitte wählen",null,null,"bitte wählen"]
[null,"bitte wählen",null,null,"bitte wählen"]
[null,"bitte wählen",null,null,"bitte wählen"]
[null,"bitte wählen",null,null,"bitte wählen"]
[null,"bitte wählen",null,null,"bitte wählen"]
[null,"bitte wählen",null,null,"bitte wählen"]
[null,"bitte wählen",null,null,"bitte wählen"]
[null,"bitte wählen",null,null,"bitte wählen"]
[null,"bitte wählen",null,null,"bitte wählen"]
[null,"bitte wählen",null,null,"bitte wählen"]
[null,"bitte wählen",null,null,"bitte wählen"]
[null,"bitte wählen",null,null,"bitte wählen"]
[null,"bitte wählen",null,null,"bitte wählen"]
[null,"bitte wählen",null,null,"bitte wählen"]
[null,"bitte wählen",null,null,"bitte wählen"]
[null,"bitte wählen",null,null,"bitte wählen"]
[null,"bitte wählen",null,null,"bitte wählen"]
[null,"bitte wählen",null,null,"bitte wählen"]
[null,"bitte wählen",null,null,"bitte wählen"]
[null,"bitte wählen",null,null,"bitte wählen"]
[null,"bitte wählen",null,null,"bitte wählen"]
[null,"bitte wählen",null,null,"bitte wählen"]
[null,"bitte wählen",null,null,"bitte wählen"]
[null,"bitte wählen",null,null,"bitte wählen"]
[null,"bitte wählen",null,null,"bitte wählen"]
[null,"bitte wählen",null,null,"bitte wählen"]
[null,"bitte wählen",null,null,"bitte wählen"]
[null,"bitte wählen",null,null,"bitte wählen"]
[null,"bitte wählen",null,null,"bitte wählen"]
[null,"bitte wählen",null,null,"bitte wählen"]
[null,"bitte wählen",null,null,"bitte wählen"]
[null,"bitte wählen",null,null,"bitte wählen"]
[null,"bitte wählen",null,null,"bitte wählen"]
[null,"bitte wählen",null,null,"bitte wählen"]
[null,"bitte wählen",null,null,"bitte wählen"]
[null,"bitte wählen",null,null,"bitte wählen"]
[null,"bitte wählen",null,null,"bitte wählen"]
[null,"bitte wählen",null,null,"bitte wählen"]
[null,"bitte wählen",null,null,"bitte wählen"]
[null,"bitte wählen",null,null,"bitte wählen"]
[null,"bitte wählen",null,null,"bitte wählen"]
[null,"bitte wählen",null,null,"bitte wählen"]
[null,"bitte wählen",null,null,"bitte wählen"]
[null,"bitte wählen",null,null,"bitte wählen"]
[null,"bitte wählen",null,null,"bitte wählen"]
[null,"bitte wählen",null,null,"bitte wählen"]
[null,"bitte wählen",null,null,"bitte wählen"]
[null,"bitte wählen",null,null,"bitte wählen"]
[null,"bitte wählen",null,null,"bitte wählen"]
[null,"bitte wählen",null,null,"bitte wählen"]
[null,"bitte wählen",null,null,"bitte wählen"]
[null,"bitte wählen",null,null,"bitte wählen"]
[null,"bitte wählen",null,null,"bitte wählen"]
[null,"bitte wählen",null,null,"bitte wählen"]
[null,"bitte wählen",null,null,"bitte wählen"]
[null,"bitte wählen",null,null,"bitte wählen"]
[null,"bitte wählen",null,null,"bitte wählen"]
[null,"bitte wählen",null,null,"bitte wählen"]
[null,"bitte wählen",null,null,"bitte wählen"]
[null,"bitte wählen",null,null,"bitte wählen"]
[null,"bitte wählen",null,null,"bitte wählen"]
[null,"bitte wählen",null,null,"bitte wählen"]
[null,"bitte wählen",null,null,"bitte wählen"]
[null,"bitte wählen",null,null,"bitte wählen"]
[null,"bitte wählen",null,null,"bitte wählen"]
[null,"bitte wählen",null,null,"bitte wählen"]
[null,"bitte wählen",null,null,"bitte wählen"]
[null,"bitte wählen",null,null,"bitte wählen"]
[null,"bitte wählen",null,null,"bitte wählen"]
[null,"bitte wählen",null,null,"bitte wählen"]
[null,"bitte wählen",null,null,"bitte wählen"]
[null,"bitte wählen",null,null,"bitte wählen"]
[null,"bitte wählen",null,null,"bitte wählen"]
[null,"bitte wählen",null,null,"bitte wählen"]
[null,"bitte wählen",null,null,"bitte wählen"]
[null,"bitte wählen",null,null,"bitte wählen"]
[null,"bitte wählen",null,null,"bitte wählen"]
[null,"bitte wählen",null,null,"bitte wählen"]
[null,"bitte wählen",null,null,"bitte wählen"]
[null,"bitte wählen",null,null,"bitte wählen"]
[null,"bitte wählen",null,null,"bitte wählen"]
[null,"bitte wählen",null,null,"bitte wählen"]
[null,"bitte wählen",null,null,"bitte wählen"]
[null,"bitte wählen",null,null,"bitte wählen"]
[null,"bitte wählen",null,null,"bitte wählen"]
[null,"bitte wählen",null,null,"bitte wählen"]
[null,"bitte wählen",null,null,"bitte wählen"]
[null,"bitte wählen",null,null,"bitte wählen"]
[null,"bitte wählen",null,null,"bitte wählen"]
[null,"bitte wählen",null,null,"bitte wählen"]
[null,"bitte wählen",null,null,"bitte wählen"]
[null,"bitte wählen",null,null,"bitte wählen"]
[null,"bitte wählen",null,null,"bitte wählen"]
[null,"bitte wählen",null,null,"bitte wählen"]
[null,"bitte wählen",null,null,"bitte wählen"]
[null,"bitte wählen",null,null,"bitte wählen"]
[null,"bitte wählen",null,null,"bitte wählen"]
[null,"bitte wählen",null,null,"bitte wählen"]
[null,"bitte wählen",null,null,"bitte wählen"]
[null,"bitte wählen",null,null,"bitte wählen"]
[null,"bitte wählen",null,null,"bitte wählen"]
[null,"bitte wählen",null,null,"bitte wählen"]
[null,"bitte wählen",null,null,"bitte wählen"]
[null,"bitte wählen",null,null,"bitte wählen"]
[null,"bitte wählen",null,null,"bitte wählen"]
[null,"bitte wählen",null,null,"bitte wählen"]
[null,"bitte wählen",null,null,"bitte wählen"]
[null,"bitte wählen",null,null,"bitte wählen"]
[null,"bitte wählen",null,null,"bitte wählen"]
[null,"bitte wählen",null,null,"bitte wählen"]
[null,"bitte wählen",null,null,"bitte wählen"]
[null,"bitte wählen",null,null,"bitte wählen"]
[null,"bitte wählen",null,null,"bitte wählen"]
[null,"bitte wählen",null,null,"bitte wählen"]
[null,"bitte wählen",null,null,"bitte wählen"]
[null,"bitte wählen",null,null,"bitte wählen"]
[null,"bitte wählen",null,null,"bitte wählen"]
[null,"bitte wählen",null,null,"bitte wählen"]
[null,"bitte wählen",null,null,"bitte wählen"]
[null,"bitte wählen",null,null,"bitte wählen"]
[null,"bitte wählen",null,null,"bitte wählen"]
[null,"bitte wählen",null,null,"bitte wählen"]
[null,"bitte wählen",null,null,"bitte wählen"]
[null,"bitte wählen",null,null,"bitte wählen"]
[null,"bitte wählen",null,null,"bitte wählen"]
[null,"bitte wählen",null,null,"bitte wählen"]
[null,"bitte wählen",null,null,"bitte wählen"]
[null,"bitte wählen",null,null,"bitte wählen"]
[null,"bitte wählen",null,null,"bitte wählen"]
[null,"bitte wählen",null,null,"bitte wählen"]
[null,"bitte wählen",null,null,"bitte wählen"]
[null,"bitte wählen",null,null,"bitte wählen"]
[null,"bitte wählen",null,null,"bitte wählen"]
[null,"bitte wählen",null,null,"bitte wählen"]
[null,"bitte wählen",null,null,"bitte wählen"]
[null,"bitte wählen",null,null,"bitte wählen"]
[null,"bitte wählen",null,null,"bitte wählen"]
[null,"bitte wählen",null,null,"bitte wählen"]
[null,"bitte wählen",null,null,"bitte wählen"]
[null,"bitte wählen",null,null,"bitte wählen"]
[null,"bitte wählen",null,null,"bitte wählen"]
[null,"bitte wählen",null,null,"bitte wählen"]
[null,"bitte wählen",null,null,"bitte wählen"]
[null,"bitte wählen",null,null,"bitte wählen"]
[null,"bitte wählen",null,null,"bitte wählen"]
[null,"bitte wählen",null,null,"bitte wählen"]
[null,"bitte wählen",null,null,"bitte wählen"]
[null,"bitte wählen",null,null,"bitte wählen"]
[null,"bitte wählen",null,null,"bitte wählen"]
[null,"bitte wählen",null,null,"bitte wählen"]
[null,"bitte wählen",null,null,"bitte wählen"]
[null,"bitte wählen",null,null,"bitte wählen"]
[null,"bitte wählen",null,null,"bitte wählen"]
[null,"bitte wählen",null,null,"bitte wählen"]
[null,"bitte wählen",null,null,"bitte wählen"]
[null,"bitte wählen",null,null,"bitte wählen"]
[null,"bitte wählen",null,null,"bitte wählen"]
[null,"bitte wählen",null,null,"bitte wählen"]
[null,"bitte wählen",null,null,"bitte wählen"]
[null,"bitte wählen",null,null,"bitte wählen"]
[null,"bitte wählen",null,null,"bitte wählen"]
[null,"bitte wählen",null,null,"bitte wählen"]
[null,"bitte wählen",null,null,"bitte wählen"]
[null,"bitte wählen",null,null,"bitte wählen"]
[null,"bitte wählen",null,null,"bitte wählen"]
[null,"bitte wählen",null,null,"bitte wählen"]
[null,"bitte wählen",null,null,"bitte wählen"]
[null,"bitte wählen",null,null,"bitte wählen"]
[null,"bitte wählen",null,null,"bitte wählen"]
[null,"bitte wählen",null,null,"bitte wählen"]
[null,"bitte wählen",null,null,"bitte wählen"]
[null,"bitte wählen",null,null,"bitte wählen"]
[null,"bitte wählen",null,null,"bitte wählen"]
[null,"bitte wählen",null,null,"bitte wählen"]
[null,"bitte wählen",null,null,"bitte wählen"]
[null,"bitte wählen",null,null,"bitte wählen"]
[null,"bitte wählen",null,null,"bitte wählen"]
[null,"bitte wählen",null,null,"bitte wählen"]
[null,"bitte wählen",null,null,"bitte wählen"]
[null,"bitte wählen",null,null,"bitte wählen"]
[null,"bitte wählen",null,null,"bitte wählen"]
[null,"bitte wählen",null,null,"bitte wählen"]
[null,"bitte wählen",null,null,"bitte wählen"]
[null,"bitte wählen",null,null,"bitte wählen"]
[null,"bitte wählen",null,null,"bitte wählen"]
[null,"bitte wählen",null,null,"bitte wählen"]
[null,"bitte wählen",null,null,"bitte wählen"]
[null,"bitte wählen",null,null,"bitte wählen"]
[null,"bitte wählen",null,null,"bitte wählen"]
[null,"bitte wählen",null,null,"bitte wählen"]
[null,"bitte wählen",null,null,"bitte wählen"]
[null,"bitte wählen",null,null,"bitte wählen"]
[null,"bitte wählen",null,null,"bitte wählen"]
[null,"bitte wählen",null,null,"bitte wählen"]
[null,"bitte wählen",null,null,"bitte wählen"]
[null,"bitte wählen",null,null,"bitte wählen"]
[null,"bitte wählen",null,null,"bitte wählen"]
[null,"bitte wählen",null,null,"bitte wählen"]
[null,"bitte wählen",null,null,"bitte wählen"]
[null,"bitte wählen",null,null,"bitte wählen"]
[null,"bitte wählen",null,null,"bitte wählen"]
[null,"bitte wählen",null,null,"bitte wählen"]
[null,"bitte wählen",null,null,"bitte wählen"]
[null,"bitte wählen",null,null,"bitte wählen"]
[null,"bitte wählen",null,null,"bitte wählen"]
[null,"bitte wählen",null,null,"bitte wählen"]
[null,"bitte wählen",null,null,"bitte wählen"]
[null,"bitte wählen",null,null,"bitte wählen"]
[null,"bitte wählen",null,null,"bitte wählen"]
[null,"bitte wählen",null,null,"bitte wählen"]
[null,"bitte wählen",null,null,"bitte wählen"]
[null,"bitte wählen",null,null,"bitte wählen"]
[null,"bitte wählen",null,null,"bitte wählen"]
[null,"bitte wählen",null,null,"bitte wählen"]
[null,"bitte wählen",null,null,"bitte wählen"]
[null,"bitte wählen",null,null,"bitte wählen"]
[null,"bitte wählen",null,null,"bitte wählen"]
[null,"bitte wählen",null,null,"bitte wählen"]
[null,"bitte wählen",null,null,"bitte wählen"]
[null,"bitte wählen",null,null,"bitte wählen"]
[null,"bitte wählen",null,null,"bitte wählen"]
[null,"bitte wählen",null,null,"bitte wählen"]
[null,"bitte wählen",null,null,"bitte wählen"]
[null,"bitte wählen",null,null,"bitte wählen"]
[null,"bitte wählen",null,null,"bitte wählen"]
[null,"bitte wählen",null,null,"bitte wählen"]
[null,"bitte wählen",null,null,"bitte wählen"]
[null,"bitte wählen",null,null,"bitte wählen"]
[null,"bitte wählen",null,null,"bitte wählen"]
[null,"bitte wählen",null,null,"bitte wählen"]
[null,"bitte wählen",null,null,"bitte wählen"]
[null,"bitte wählen",null,null,"bitte wählen"]
[null,"bitte wählen",null,null,"bitte wählen"]
[null,"bitte wählen",null,null,"bitte wählen"]
[null,"bitte wählen",null,null,"bitte wählen"]
[null,"bitte wählen",null,null,"bitte wählen"]
[null,"bitte wählen",null,null,"bitte wählen"]
[null,"bitte wählen",null,null,"bitte wählen"]
[null,"bitte wählen",null,null,"bitte wählen"]
[null,"bitte wählen",null,null,"bitte wählen"]
[null,"bitte wählen",null,null,"bitte wählen"]
[null,"bitte wählen",null,null,"bitte wählen"]
[null,"bitte wählen",null,null,"bitte wählen"]
[null,"bitte wählen",null,null,"bitte wählen"]
[null,"bitte wählen",null,null,"bitte wählen"]
[null,"bitte wählen",null,null,"bitte wählen"]
[null,"bitte wählen",null,null,"bitte wählen"]
[null,"bitte wählen",null,null,"bitte wählen"]
[null,"bitte wählen",null,null,"bitte wählen"]
[null,"bitte wählen",null,null,"bitte wählen"]
[null,"bitte wählen",null,null,"bitte wählen"]
[null,"bitte wählen",null,null,"bitte wählen"]
[null,"bitte wählen",null,null,"bitte wählen"]
[null,"bitte wählen",null,null,"bitte wählen"]
[null,"bitte wählen",null,null,"bitte wählen"]
[null,"bitte wählen",null,null,"bitte wählen"]
[null,"bitte wählen",null,null,"bitte wählen"]
[null,"bitte wählen",null,null,"bitte wählen"]
[null,"bitte wählen",null,null,"bitte wählen"]
[null,"bitte wählen",null,null,"bitte wählen"]
[null,"bitte wählen",null,null,"bitte wählen"]
[null,"bitte wählen",null,null,"bitte wählen"]
[null,"bitte wählen",null,null,"bitte wählen"]
[null,"bitte wählen",null,null,"bitte wählen"]
[null,"bitte wählen",null,null,"bitte wählen"]
[null,"bitte wählen",null,null,"bitte wählen"]
[null,"bitte wählen",null,null,"bitte wählen"]
[null,"bitte wählen",null,null,"bitte wählen"]
[null,"bitte wählen",null,null,"bitte wählen"]
[null,"bitte wählen",null,null,"bitte wählen"]
[null,"bitte wählen",null,null,"bitte wählen"]
[null,"bitte wählen",null,null,"bitte wählen"]
[null,"bitte wählen",null,null,"bitte wählen"]
[null,"bitte wählen",null,null,"bitte wählen"]
[null,"bitte wählen",null,null,"bitte wählen"]
[null,"bitte wählen",null,null,"bitte wählen"]
[null,"bitte wählen",null,null,"bitte wählen"]
[null,"bitte wählen",null,null,"bitte wählen"]
[null,"bitte wählen",null,null,"bitte wählen"]
[null,"bitte wählen",null,null,"bitte wählen"]
[null,"bitte wählen",null,null,"bitte wählen"]
[null,"bitte wählen",null,null,"bitte wählen"]
[null,"bitte wählen",null,null,"bitte wählen"]
[null,"bitte wählen",null,null,"bitte wählen"]
[null,"bitte wählen",null,null,"bitte wählen"]
[null,"bitte wählen",null,null,"bitte wählen"]
[null,"bitte wählen",null,null,"bitte wählen"]
[null,"bitte wählen",null,null,"bitte wählen"]
[null,"bitte wählen",null,null,"bitte wählen"]
[null,"bitte wählen",null,null,"bitte wählen"]
[null,"bitte wählen",null,null,"bitte wählen"]
[null,"bitte wählen",null,null,"bitte wählen"]
[null,"bitte wählen",null,null,"bitte wählen"]
[null,"bitte wählen",null,null,"bitte wählen"]
[null,"bitte wählen",null,null,"bitte wählen"]
[null,"bitte wählen",null,null,"bitte wählen"]
[null,"bitte wählen",null,null,"bitte wählen"]
[null,"bitte wählen",null,null,"bitte wählen"]
[null,"bitte wählen",null,null,"bitte wählen"]
[null,"bitte wählen",null,null,"bitte wählen"]
[null,"bitte wählen",null,null,"bitte wählen"]
[null,"bitte wählen",null,null,"bitte wählen"]
[null,"bitte wählen",null,null,"bitte wählen"]
[null,"bitte wählen",null,null,"bitte wählen"]
[null,"bitte wählen",null,null,"bitte wählen"]
[null,"bitte wählen",null,null,"bitte wählen"]
[null,"bitte wählen",null,null,"bitte wählen"]
[null,"bitte wählen",null,null,"bitte wählen"]
[null,"bitte wählen",null,null,"bitte wählen"]
[null,"bitte wählen",null,null,"bitte wählen"]
[null,"bitte wählen",null,null,"bitte wählen"]
[null,"bitte wählen",null,null,"bitte wählen"]
[null,"bitte wählen",null,null,"bitte wählen"]
[null,"bitte wählen",null,null,"bitte wählen"]
[null,"bitte wählen",null,null,"bitte wählen"]
[null,"bitte wählen",null,null,"bitte wählen"]
[null,"bitte wählen",null,null,"bitte wählen"]
[null,"bitte wählen",null,null,"bitte wählen"]
[null,"bitte wählen",null,null,"bitte wählen"]